Workbook

Sheet CoverSheet
A3: Gas Pipeline Businesses
A4: Price-Quality Regulation 1 October 2022 Reset
A5: Default Price Path Draft Financial Model
A17: Published 10 February 2022 v1

Sheet Description
A1: Description
A3: General Description
B4: This is the financial model prepared by the Commission to calculate starting prices for those GPBs (suppliers) that are subject to default price quality regulation as from 1 October 2022.
B5: Data
B6: Data inputs do not currently reflect expected values for the 2022 reset. They are mostly our best data inputs, and will be updated as the final decision approaches.
B7: Notes:
B8: 1 | C8: Financial quantities in this model are expressed in NZD'000. All values are nominal, except for present values which are defined where they are used.
B9: 2 | C9: All data used by the model are entered in the 'Input' worksheet.
B10: 3 | C10: The 'Output' worksheet uses Excel's data table facility to display the calculated results for all suppliers.
B11: 4 | C11: The model shows the calculation of the outputs for the supplier selected in the 'Inputs' worksheet dropdown list in cell C3.
B12: 5 | C12: For each supplier, the calculated results are detailed in the Outputs worksheet.
B13: 6 | C13: The applicable X factor used in the calculations is the industry-wide X factor unless an alternative X factor is entered in the input worksheet in respect of that supplier. In practice, no supplier has an alternative X factor specified.
B14: 7 | C14: A fill colour is used in cells containing a formula that links to another worksheet.
B15: 8 | C15: A right hand orange border is applied to cells containing a formula that differs from neighbouring cell on the right.
B16: 9 | C16: A red font is applied to input cells to the workbook, including links to other workbooks.
A18: Accelerated Depreciation
B19: a | C19: The Inputs sheet contains at Rows 27 and28 inputs for the "adjustment factor" used to reduce remaining asset lives at the start of the regulatory period, and thereby accelerated depreciation.
B20: b | C20: The term "adjustment factor" is the IM term used in the GPB IM for the GPB DPP3 reset. The percentage reduction in remaining asset lives is 1 - adjustment factor.
B21: c | C21: The model is currently set up with a sensitivity analysis to produced the charts at Rows 89 to 115 on the Inputs sheet.
B22: d | C22: Numerical experiments with this model may be done by replacing the contents of cells B28 and B29 on the Inputs sheet.

Sheet Table of Contents
A1: Table of Contents
B4: Sheet Name | C4: Link
B5: Inputs | C5: Inputs
B6: GPB data | C6: Inputs for the selected supplier
B7: Timing | C7: Timing
C8: Inputs
C9: Calculations
C10: Outputs
B11: RAB | C11: Regulatory asset base
C12: Inputs
C13: Calculations
C14: Outputs
B15: Tax | C15: Tax calculations
C16: Inputs
C17: Calculations
C18: Outputs
B19: BBAR | C19: Building blocks allowable revenue
C20: Inputs
C21: Calculations
C22: Outputs
B23: Rev | C23: Revenue growth index
C24: Inputs
C25: Calculations
C26: Outputs
B27: MAR | C27: Maximum allowable revenue
C28: Inputs
C29: Calculations
C30: Outputs
B31: Outputs | C31: DPP reset output table
C32: Outputs
B33: Outputs to Chartbook | C33: Outputs to chartbook
C34: Reasons Paper Charts
C35: Chapter 4 tables
C36: Transmission Determination Tables & Values
C37: Distribution Determination Tables & Values
B38: Notes | C38: Model notes

Sheet Inputs
A1: Inputs | B1: Values, not time series | C1: Early base year | D1: Standard base year | E1: Gap year | F1: 1st BBAR year | G1: 2nd BBAR year | H1: 3rd BBAR year | I1: 4th BBAR year | J1: 5th BBAR year
A2: All input data is entered into this worksheet. | B2: Exceptions to the principle that an inputs sheet should not include anything other than inputs have this grey background.
A3: Name of supplier currently chosen as the focus of this workbook | C3: Powerco
A4: Supplier number (inferred from chosen name above) | C4: =HLOOKUP(GPB_name,Inputs!$B$22:$G$23,2,FALSE) -> 2
A5: Supplier number (from Output sheet) | C5: =Outputs!B4 -> 2
A6: Inputs that are the same for all suppliers
A7: BBAR year ending in calendar year: | C7: =D7-1 -> 2020 | D7: =E7-1 -> 2021 | E7: =F7-1 -> 2022 | F7: 2023 | G7: =F7+1 -> 2024 | H7: =G7+1 -> 2025 | I7: =H7+1 -> 2026 | J7: =I7+1 -> 2027
A8: Forecast changes in CPI used for revaluations, June year-ends | D8: =[1]Output!G8 -> 0.03342884432 | E8: =[1]Output!H8 -> 0.052 | F8: =[1]Output!I8 -> 0.025 | G8: =[1]Output!J8 -> 0.021 | H8: =[1]Output!K8 -> 0.02 | I8: =[1]Output!L8 -> 0.02 | J8: =[1]Output!M8 -> 0.02
A9: Forecast changes in CPI used for revaluations, September year-ends | D9: =[1]Output!G9 -> 0.04933586338 | E9: =[1]Output!H9 -> 0.04 | F9: =[1]Output!I9 -> 0.023 | G9: =[1]Output!J9 -> 0.02 | H9: =[1]Output!K9 -> 0.02 | I9: =[1]Output!L9 -> 0.02 | J9: =[1]Output!M9 -> 0.02
A10: Forecast changes in the CPI element of the price path for GDB | D10: =[1]Output!G10 -> 0.01882640587 | E10: =[1]Output!H10 -> 0.01463882889 | F10: =[1]Output!I10 -> 0.04925236518 | G10: =[1]Output!J10 -> 0.03836140997 | H10: =[1]Output!K10 -> 0.02248782285 | I10: =[1]Output!L10 -> 0.02024771097 | J10: =[1]Output!M10 -> 0.02
A11: Forecast changes in the CPI element of the price path for GTB | D11: =[1]Output!G11 -> 0.02811532047 | E11: =[1]Output!H11 -> 0.05138887601 | F11: =[1]Output!I11 -> 0.02746210288 | G11: =[1]Output!J11 -> 0.02074756236 | H11: =[1]Output!K11 -> 0.02 | I11: =[1]Output!L11 -> 0.02 | J11: =[1]Output!M11 -> 0.02
A12: Corporate tax rate | C12: 0.28 | D12: 0.28 | E12: 0.28 | F12: 0.28 | G12: 0.28 | H12: 0.28 | I12: 0.28 | J12: 0.28
A13: Days from mid-year to year-end | B13: 182
A14: Days from revenue date to year-end | B14: 148
A15: Day prior to start of the regulatory period | B15: 2022-09-30
A16: Vanilla WACC (67th percentile) | B16: 0.0607
A17: Cost of debt | B17: 0.0401
A18: Leverage | B18: 0.42
A19: Remaining asset life for additional assets before adjustment | B19: 45
A20: Industry-wide X factor | B20: 0
A21: Inputs that are specific to individual suppliers | I21: Selected supplier #: | J21: =Outputs!B4 -> 2 | K21: Value for selected supplier
A22: Name | B22: GasNet | C22: Powerco | D22: Vector | E22: First Gas distribution | F22: First Gas transmission | K22: =INDEX(B22:F22,,$J$21) -> Powerco
A23: Supplier number | B23: 1 | C23: 2 | D23: 3 | E23: 4 | F23: 5
A24: Early base year adopted? | B24: TRUE | C24: TRUE | D24: TRUE | E24: TRUE | F24: TRUE | K24: =INDEX(B24:F24,,$J$21) -> TRUE
A25: Last day in the standard base year | B25: 2021-06-30 | C25: 2021-09-30 | D25: 2021-06-30 | E25: 2021-09-30 | F25: 2021-09-30 | K25: =INDEX(B25:F25,,$J$21) -> 2021-09-30
A26: Tax payable (payable) or deferred tax (deferred) | B26: deferred | C26: deferred | D26: deferred | E26: deferred | F26: payable | K26: deferred
A27: Total revenue cap (TRC) or weighted avg price cap (WAPC) | B27: WAPC | C27: WAPC | D27: WAPC | E27: WAPC | F27: TRC_FQ | K27: WAPC
A28: Adjustment factor (for accelerated depreciation) existing | B28: 0.6379706969 | C28: 0.8712376753 | D28: 0.5999520724 | E28: =ADF_FGD -> 0.846556341 | F28: =Outputs!D45 -> 0.750509227 | K28: 0.8712376753
A29: Adjustment factor (for accelerated depreciation) additional | B29: =B28 -> 0.6379706969 | C29: =C28 -> 0.8712376753 | D29: 0.5999520724 | E29: 0.846556341 | F29: 0.750509227 | K29: 0.8712376753
A30: Initial conditions
A31: Opening RAB | B31: =[2]Output!B5 -> 23971 | C31: =[2]Output!C5 -> 383406.5398 | D31: =[2]Output!D5 -> 424027.9549 | E31: =[2]Output!E5 -> 164080.7203 | F31: =[2]Output!F5 -> 834976.3319 | K31: =INDEX(B31:F31,,$J$21) -> 383406.5398
A32: Total depreciation | B32: =[2]Output!B6 -> 815 | C32: =[2]Output!C6 -> 18774.39254 | D32: =[2]Output!D6 -> 12159 | E32: =[2]Output!E6 -> 6609.153494 | F32: =[2]Output!F6 -> 34953.91567 | K32: =INDEX(B32:F32,,$J$21) -> 18774.39254
A33: Closing RAB | B33: =[2]Output!B7 -> 24056 | C33: =[2]Output!C7 -> 387505.4907 | D33: =[2]Output!D7 -> 434256 | E33: =[2]Output!E7 -> 174405.3018 | F33: =[2]Output!F7 -> 849688.0929 | K33: 387505.4907
A34: Opening RAB excluding revaluations | B34: =[2]Output!B8 -> 21321 | C34: =[2]Output!C8 -> 345486.4593 | D34: =[2]Output!D8 -> 382656 | E34: =[2]Output!E8 -> 150920.5823 | F34: =[2]Output!F8 -> 0 | K34: 345486.4593
A35: Adjusted depreciation | B35: =[2]Output!B9 -> 726 | C35: =[2]Output!C9 -> 16056.71112 | D35: =[2]Output!D9 -> 10953 | E35: =[2]Output!E9 -> 5480.49213 | F35: =[2]Output!F9 -> 0 | K35: 16056.71112
A36: Tax depreciation | B36: =[2]Output!B10 -> 686 | C36: =[2]Output!C10 -> 15807.35387 | D36: =[2]Output!D10 -> 17821 | E36: =[2]Output!E10 -> 8341.556093 | F36: =[2]Output!F10 -> 26642.70332 | K36: 15807.35387
A37: Opening regulatory tax asset value | B37: =[2]Output!B11 -> 6503 | C37: =[2]Output!C11 -> 175593.7434 | D37: =[2]Output!D11 -> 179437 | E37: =[2]Output!E11 -> 65279.32682 | F37: =[2]Output!F11 -> 198250 | K37: 175593.7434
A38: Amortisation of initial differences in asset values | B38: =[2]Output!B12 -> 474.8952951 | C38: =[2]Output!C12 -> 2292.498839 | D38: =[2]Output!D12 -> 2453.181818 | E38: =[2]Output!E12 -> 1682.628571 | F38: =[2]Output!F12 -> 0 | K38: 2292.498839
A39: Term credit spread differential allowance | B39: =[2]Output!B13 -> 0 | C39: =[2]Output!C13 -> 396.2463004 | D39: =[2]Output!D13 -> 494.6875116 | E39: =[2]Output!E13 -> 0 | F39: =[2]Output!F13 -> 0 | K39: 396.2463004
A40: Opening deferred tax balance | B40: =[2]Output!B14 -> -1282 | C40: =[2]Output!C14 -> -29314.04205 | D40: =[2]Output!D14 -> -31191 | E40: =[2]Output!E14 -> -7675.050712 | F40: =[2]Output!F14 -> 0 | K40: -29314.04205
A41: Capital expenditure ~ value of commissioned assets | B41: =[2]Output!B15 -> 559 | C41: =[2]Output!C15 -> 15767.35737 | D41: =[2]Output!D15 -> 16315 | E41: =[2]Output!E15 -> 14566.09597 | F41: =[2]Output!F15 -> 37682.30302 | K41: 15767.35737
A42: Alternative X factor (leave blank if no alternative) | B42: -0.05114540505 | C42: -0.07485632177 | D42: -0.0522027492 | E42: -0.1 | F42: -0.1 | K42: =IF(ISBLANK(INDEX(B42:F42,,$J$21)),"blank",INDEX(B42:F42,,$J$21)) -> -0.07485632177
A43: DPP2 2022 values | B43: 4383.998268 | C43: 51435.56862 | D43: 50702.2772 | E43: 24646.15131 | F43: 131623.3864 | K43: =IF(ISBLANK(INDEX(B43:F43,,$J$21)),"blank",INDEX(B43:F43,,$J$21)) -> 51435.56862
A44: Operating expenditure | B44: =[3]Reporting!$E$38-B42 -> 0 | C44: =[3]Reporting!$E$42-C42 -> 0 | D44: =[3]Reporting!$E$46-D42 -> 0
A45: Operating expenditure in year ending 2021 | B45: ='[4]Reflation outputs'!B5 -> 1719.208286 | C45: ='[4]Reflation outputs'!C5 -> 18232 | D45: ='[4]Reflation outputs'!D5 -> 13123 | E45: ='[4]Reflation outputs'!E5 -> 8816.241216 | F45: ='[4]Reflation outputs'!F5 -> 44322 | K45: =INDEX(B45:F45,,$J$21) -> 18232
A46: Operating expenditure in year ending 2022 | B46: ='[4]Reflation outputs'!B6 -> 1807.380112 | C46: ='[4]Reflation outputs'!C6 -> 19349.86826 | D46: ='[4]Reflation outputs'!D6 -> 14591.09311 | E46: ='[4]Reflation outputs'!E6 -> 9686.917905 | F46: ='[4]Reflation outputs'!F6 -> 51210.56269 | K46: 19349.86826
A47: Operating expenditure in year ending 2023 | B47: ='[4]Reflation outputs'!B7 -> 2209.333103 | C47: ='[4]Reflation outputs'!C7 -> 19916.2428 | D47: ='[4]Reflation outputs'!D7 -> 15500.86062 | E47: ='[4]Reflation outputs'!E7 -> 10267.63456 | F47: ='[4]Reflation outputs'!F7 -> 53479.72467 | K47: 19916.2428
A48: Operating expenditure in year ending 2024 | B48: ='[4]Reflation outputs'!B8 -> 2280.613522 | C48: ='[4]Reflation outputs'!C8 -> 20406.7001 | D48: ='[4]Reflation outputs'!D8 -> 15918.01815 | E48: ='[4]Reflation outputs'!E8 -> 10795.70454 | F48: ='[4]Reflation outputs'!F8 -> 55287.28331 | K48: 20406.7001
A49: Operating expenditure in year ending 2025 | B49: ='[4]Reflation outputs'!B9 -> 2352.463016 | C49: ='[4]Reflation outputs'!C9 -> 21078.93564 | D49: ='[4]Reflation outputs'!D9 -> 16073.65778 | E49: ='[4]Reflation outputs'!E9 -> 11313.96133 | F49: ='[4]Reflation outputs'!F9 -> 56850.15601 | K49: 21078.93564
A50: Operating expenditure in year ending 2026 | B50: ='[4]Reflation outputs'!B10 -> 2413.65217 | C50: ='[4]Reflation outputs'!C10 -> 21672.41728 | D50: ='[4]Reflation outputs'!D10 -> 16541.41261 | E50: ='[4]Reflation outputs'!E10 -> 11765.78988 | F50: ='[4]Reflation outputs'!F10 -> 58702.29709 | K50: 21672.41728
A51: Operating expenditure in year ending 2027 | B51: ='[4]Reflation outputs'!B11 -> 2468.141809 | C51: ='[4]Reflation outputs'!C11 -> 22146.76068 | D51: ='[4]Reflation outputs'!D11 -> 17002.65605 | E51: ='[4]Reflation outputs'!E11 -> 12232.45553 | F51: ='[4]Reflation outputs'!F11 -> 59873.53087 | K51: 22146.76068
A53: Constant price revenue growth
A54: Constant price revenue growth in year ending 2021 | K54: =INDEX(B54:F54,,$J$21) -> 0
A55: Constant price revenue growth in year ending 2022 | B55: =[5]Output!B3 -> 0.001109051256 | C55: =[5]Output!C3 -> 0.01534142993 | D55: =[5]Output!D3 -> 0.01378072768 | E55: =[5]Output!E3 -> -0.006621538359 | K55: =INDEX(B55:F55,,$J$21) -> 0.01534142993
A56: Constant price revenue growth in year ending 2023 | B56: =[5]Output!B4 -> 0.0007452748755 | C56: =[5]Output!C4 -> 0.01493318336 | D56: =[5]Output!D4 -> 0.01570962614 | E56: =[5]Output!E4 -> -0.006892505495 | K56: =INDEX(B56:F56,,$J$21) -> 0.01493318336
A57: Constant price revenue growth in year ending 2024 | B57: =[5]Output!B5 -> 0.0005188765247 | C57: =[5]Output!C5 -> 0.01427319055 | D57: =[5]Output!D5 -> 0.01050317518 | E57: =[5]Output!E5 -> -0.007156717435 | K57: 0.01427319055
A58: Constant price revenue growth in year ending 2025 | B58: =[5]Output!B6 -> 0.0003057413528 | C58: =[5]Output!C6 -> 0.01361786665 | D58: =[5]Output!D6 -> 0.01032279208 | E58: =[5]Output!E6 -> -0.007413905448 | K58: 0.01361786665
A59: Constant price revenue growth in year ending 2026 | B59: =[5]Output!B7 -> 0.0001053972105 | C59: =[5]Output!C7 -> 0.01296971087 | D59: =[5]Output!D7 -> 0.01014377539 | E59: =[5]Output!E7 -> -0.007663666789 | K59: 0.01296971087
A60: Constant price revenue growth in year ending 2027 | B60: =[5]Output!B8 -> -8.265491881e-05 | C60: =[5]Output!C8 -> 0.01233841492 | D60: =[5]Output!D8 -> 0.01000883144 | E60: =[5]Output!E8 -> -0.007905796045 | K60: 0.01233841492
A61: Constant price revenue growth in year ending 2028 | K61: 0
A62: Value of commissioned assets | B62: Data for first row of value of commissioned assets linked differently from rest of panel
K63: =INDEX(B63:F63,,$J$21) -> 0
A64: Value of commissioned assets, yr ending 2020 | B64: =B41 -> 559 | C64: =C41 -> 15767.35737 | D64: 16315 | E64: 14566.09597 | F64: 37682.30302 | K64: 15767.35737
A65: Value of commissioned assets, yr ending 2021 | B65: ='[4]Reflation outputs'!B16 -> 800.4730001 | C65: ='[4]Reflation outputs'!C16 -> 18279.35708 | D65: ='[4]Reflation outputs'!D16 -> 15525.51039 | E65: ='[4]Reflation outputs'!E16 -> 13007.79958 | F65: ='[4]Reflation outputs'!F16 -> 35101.66749 | K65: 18279.35708
A66: Value of commissioned assets, yr ending 2022 | B66: ='[4]Reflation outputs'!B17 -> 810.66374 | C66: ='[4]Reflation outputs'!C17 -> 18254.94431 | D66: ='[4]Reflation outputs'!D17 -> 7050.395188 | E66: ='[4]Reflation outputs'!E17 -> 21831.00225 | F66: ='[4]Reflation outputs'!F17 -> 53794.2602 | K66: 18254.94431
A67: Value of commissioned assets, yr ending 2023 | B67: ='[4]Reflation outputs'!B18 -> 1030.175855 | C67: ='[4]Reflation outputs'!C18 -> 18972.8606 | D67: ='[4]Reflation outputs'!D18 -> 6627.664979 | E67: ='[4]Reflation outputs'!E18 -> 14495.48827 | F67: ='[4]Reflation outputs'!F18 -> 58641.39746 | K67: 18972.8606
A68: Value of commissioned assets, yr ending 2024 | B68: ='[4]Reflation outputs'!B19 -> 967.9419475 | C68: ='[4]Reflation outputs'!C19 -> 19067.5832 | D68: ='[4]Reflation outputs'!D19 -> 5966.442061 | E68: ='[4]Reflation outputs'!E19 -> 14557.51815 | F68: ='[4]Reflation outputs'!F19 -> 48315.70818 | K68: 19067.5832
A69: Value of commissioned assets, yr ending 2025 | B69: ='[4]Reflation outputs'!B20 -> 998.0541497 | C69: ='[4]Reflation outputs'!C20 -> 20001.43564 | D69: ='[4]Reflation outputs'!D20 -> 6635.746939 | E69: ='[4]Reflation outputs'!E20 -> 14658.45746 | F69: ='[4]Reflation outputs'!F20 -> 41557.54469 | K69: 20001.43564
A70: Value of commissioned assets, yr ending 2026 | B70: ='[4]Reflation outputs'!B21 -> 1025.555467 | C70: ='[4]Reflation outputs'!C21 -> 21763.78953 | D70: ='[4]Reflation outputs'!D21 -> 7614.341354 | E70: ='[4]Reflation outputs'!E21 -> 14603.92335 | F70: ='[4]Reflation outputs'!F21 -> 43513.37103 | K70: 21763.78953
A71: Value of commissioned assets, yr ending 2027 | B71: ='[4]Reflation outputs'!B22 -> 1052.534608 | C71: ='[4]Reflation outputs'!C22 -> 21883.41421 | D71: ='[4]Reflation outputs'!D22 -> 8534.788375 | E71: ='[4]Reflation outputs'!E22 -> 14996.4779 | F71: ='[4]Reflation outputs'!F22 -> 45771.86572 | K71: 21883.41421
A72: Value of commissioned assets, yr ending 2028 | B72: ='[4]Reflation outputs'!B23 -> 1079.513749 | C72: ='[4]Reflation outputs'!C23 -> 21912.70725 | D72: ='[4]Reflation outputs'!D23 -> 6850.023226 | E72: ='[4]Reflation outputs'!E23 -> 14943.22803 | F72: ='[4]Reflation outputs'!F23 -> 37860.88237 | K72: 21912.70725
A73: Name | B73: GasNet | C73: Powerco | D73: Vector | E73: First Gas distribution | F73: First Gas transmission
A74: Value of disposed assets
A75: Value of disposed assets, yr ending 2020 | B75: =[2]Output!B17 -> 0 | C75: =[2]Output!C17 -> 563.5092671 | D75: =[2]Output!D17 -> 48 | E75: =[2]Output!E17 -> 0 | F75: =[2]Output!F17 -> 53.00725 | K75: 563.5092671
A76: Value of disposed assets, yr ending 2021 | B76: =[2]Output!B18 -> 10.97464374 | C76: =[2]Output!C18 -> 394.2996835 | D76: =[2]Output!D18 -> 57.7843877 | E76: =[2]Output!E18 -> 7.118726439 | F76: =[2]Output!F18 -> 35.28124578 | K76: 394.2996835
A77: Value of disposed assets, yr ending 2022 | B77: =[2]Output!B19 -> 11.54532521 | C77: =[2]Output!C19 -> 410.0716708 | D77: =[2]Output!D19 -> 60.78917586 | E77: =[2]Output!E19 -> 7.403475497 | F77: =[2]Output!F19 -> 36.69249561 | K77: 410.0716708
A78: Value of disposed assets, yr ending 2023 | B78: =[2]Output!B20 -> 11.83395834 | C78: =[2]Output!C20 -> 419.5033192 | D78: =[2]Output!D20 -> 62.30890526 | E78: =[2]Output!E20 -> 7.573755433 | F78: =[2]Output!F20 -> 37.53642301 | K78: 419.5033192
A79: Value of disposed assets, yr ending 2024 | B79: =[2]Output!B21 -> 12.08247147 | C79: =[2]Output!C21 -> 427.8933856 | D79: =[2]Output!D21 -> 63.61739227 | E79: =[2]Output!E21 -> 7.725230542 | F79: =[2]Output!F21 -> 38.28715147 | K79: 427.8933856
A80: Value of disposed assets, yr ending 2025 | B80: =[2]Output!B22 -> 12.32412089 | C80: =[2]Output!C22 -> 436.4512533 | D80: =[2]Output!D22 -> 64.88974011 | E80: =[2]Output!E22 -> 7.879735153 | F80: =[2]Output!F22 -> 39.0528945 | K80: 436.4512533
A81: Value of disposed assets, yr ending 2026 | B81: =[2]Output!B23 -> 12.57060331 | C81: =[2]Output!C23 -> 445.1802784 | D81: =[2]Output!D23 -> 66.18753492 | E81: =[2]Output!E23 -> 8.037329856 | F81: =[2]Output!F23 -> 39.83395239 | K81: 445.1802784
A82: Value of disposed assets, yr ending 2027 | B82: =[2]Output!B24 -> 12.82201538 | C82: =[2]Output!C24 -> 454.083884 | D82: =[2]Output!D24 -> 67.51128562 | E82: =[2]Output!E24 -> 8.198076453 | F82: =[2]Output!F24 -> 40.63063143 | K82: 454.083884
A83: Value of disposed assets, yr ending 2028 | B83: =[2]Output!B25 -> 13.07845569 | C83: =[2]Output!C25 -> 463.1655617 | D83: =[2]Output!D25 -> 68.86151133 | E83: =[2]Output!E25 -> 8.362037982 | F83: =[2]Output!F25 -> 41.44324406 | K83: 463.1655617
A84: Other regulated income
A85: Other regulated income, yr ending 2023 | B85: =[2]Output!B28 -> 39.79668655 | C85: =[2]Output!C28 -> 333.1946789 | D85: =[2]Output!D28 -> -60.61309043 | E85: =[2]Output!E28 -> 191.1458842 | K85: 333.1946789
A86: Other regulated income, yr ending 2024 | B86: =[2]Output!B29 -> 40.63241696 | C86: =[2]Output!C29 -> 339.8585725 | D86: =[2]Output!D29 -> -61.88596533 | E86: =[2]Output!E29 -> 194.9688019 | K86: 339.8585725
A87: Other regulated income, yr ending 2025 | B87: =[2]Output!B30 -> 41.4450653 | C87: =[2]Output!C30 -> 346.655744 | D87: =[2]Output!D30 -> -63.12368464 | E87: =[2]Output!E30 -> 198.8681779 | K87: 346.655744
A88: Other regulated income, yr ending 2026 | B88: =[2]Output!B31 -> 42.27396661 | C88: =[2]Output!C31 -> 353.5888588 | D88: =[2]Output!D31 -> -64.38615833 | E88: =[2]Output!E31 -> 202.8455415 | K88: 353.5888588
A89: Other regulated income, yr ending 2027 | B89: =[2]Output!B32 -> 43.11944594 | C89: =[2]Output!C32 -> 360.660636 | D89: =[2]Output!D32 -> -65.6738815 | E89: =[2]Output!E32 -> 206.9024523 | K89: 360.660636
A90: Other regulated income, yr ending 2028 | B90: =[2]Output!B33 -> 43.98183486 | C90: =[2]Output!C33 -> 367.8738487 | D90: =[2]Output!D33 -> -66.98735913 | E90: =[2]Output!E33 -> 211.0405013 | K90: 367.8738487

Sheet GPB data
A1: Inputs for the selected supplier | B1: Values, not time series | C1: Early base year | D1: Standard base year | E1: Gap year | F1: 1st BBAR or Pricing year | G1: 2nd BBAR or Pricing year | H1: 3rd BBAR or Pricing year | I1: 4th BBAR or Pricing year | J1: 5th BBAR or Pricing year
A2: Data from the Inputs sheet that relates to the selected supplier. The supplier's name is user-selected in cell C3 on the Inputs sheet. | C2: =TEXT(EOMONTH($B$17+1,-25)+1,"dd.mm.yy") & " to " & TEXT(EOMONTH($B$17,-12),"dd.mm.yy") -> 01.10.19 to 30.09.20 | D2: =TEXT(EOMONTH($B$17+1,-13)+1,"dd.mm.yy") & " to " & TEXT(EOMONTH($B$17,0),"dd.mm.yy") -> 01.10.20 to 30.09.21 | E2: =TEXT(EOMONTH($B$17+1,-1)+1,"dd.mm.yy") & " to " & TEXT(EOMONTH($B$17,12),"dd.mm.yy") -> 01.10.21 to 30.09.22 | F2: =TEXT(EOMONTH($B$17+1,11)+1,"dd.mm.yy") & " to " & TEXT(EOMONTH($B$17,24),"dd.mm.yy") -> 01.10.22 to 30.09.23 | G2: =TEXT(EOMONTH($B$17+1,23)+1,"dd.mm.yy") & " to " & TEXT(EOMONTH($B$17,36),"dd.mm.yy") -> 01.10.23 to 30.09.24 | H2: =TEXT(EOMONTH($B$17+1,35)+1,"dd.mm.yy") & " to " & TEXT(EOMONTH($B$17,48),"dd.mm.yy") -> 01.10.24 to 30.09.25 | I2: =TEXT(EOMONTH($B$17+1,47)+1,"dd.mm.yy") & " to " & TEXT(EOMONTH($B$17,60),"dd.mm.yy") -> 01.10.25 to 30.09.26 | J2: =TEXT(EOMONTH($B$17+1,59)+1,"dd.mm.yy") & " to " & TEXT(EOMONTH($B$17,72),"dd.mm.yy") -> 01.10.26 to 30.09.27
A3: Supplier | J3: =GPB_name -> Powerco
A4: Supplier number | C4: =Inputs!C5 -> 2
A5: General data
A6: Non business-specific single inputs
A7: =Inputs!A16 -> Vanilla WACC (67th percentile) | B7: =Inputs!B16 -> 0.0607
A8: =Inputs!A17 -> Cost of debt | B8: =Inputs!B17 -> 0.0401
A9: =Inputs!A18 -> Leverage | B9: =Inputs!B18 -> 0.42
A10: =Inputs!A19 -> Remaining asset life for additional assets before adjustment | B10: =Inputs!B19 -> 45 | C10: years
A11: =Inputs!A20 -> Industry-wide X factor | B11: =Inputs!B20 -> 0
A12: =Inputs!A13 -> Days from mid-year to year-end | B12: =Inputs!B13 -> 182 | C12: days
A13: =Inputs!A14 -> Days from revenue date to year-end | B13: =Inputs!B14 -> 148 | C13: days
A14: =Inputs!A15 -> Day prior to start of the regulatory period | B14: =Inputs!B15 -> 2022-09-30
A15: General time-series data
A16: Early base year adopted? | B16: =Inputs!K24 -> TRUE
A17: Last day in the standard base year | B17: =Inputs!K25 -> 2021-09-30
A18: BBAR year ending in calendar year: | C18: =Inputs!C7 -> 2020 | D18: =Inputs!D7 -> 2021 | E18: =Inputs!E7 -> 2022 | F18: =Inputs!F7 -> 2023 | G18: =Inputs!G7 -> 2024 | H18: =Inputs!H7 -> 2025 | I18: =Inputs!I7 -> 2026 | J18: =Inputs!J7 -> 2027
A19: =Inputs!A8 -> Forecast changes in CPI used for revaluations, June year-ends | D19: =Inputs!D8 -> 0.03342884432 | E19: =Inputs!E8 -> 0.052 | F19: =Inputs!F8 -> 0.025 | G19: =Inputs!G8 -> 0.021 | H19: =Inputs!H8 -> 0.02 | I19: =Inputs!I8 -> 0.02 | J19: =Inputs!J8 -> 0.02
A20: =Inputs!A9 -> Forecast changes in CPI used for revaluations, September year-ends | D20: =Inputs!D9 -> 0.04933586338 | E20: =Inputs!E9 -> 0.04 | F20: =Inputs!F9 -> 0.023 | G20: =Inputs!G9 -> 0.02 | H20: =Inputs!H9 -> 0.02 | I20: =Inputs!I9 -> 0.02 | J20: =Inputs!J9 -> 0.02
A21: =Inputs!A10 -> Forecast changes in the CPI element of the price path for GDB | F21: =Inputs!F10 -> 0.04925236518 | G21: =Inputs!G10 -> 0.03836140997 | H21: =Inputs!H10 -> 0.02248782285 | I21: =Inputs!I10 -> 0.02024771097 | J21: =Inputs!J10 -> 0.02
A22: =Inputs!A11 -> Forecast changes in the CPI element of the price path for GTB | F22: =Inputs!F11 -> 0.02746210288 | G22: =Inputs!G11 -> 0.02074756236 | H22: =Inputs!H11 -> 0.02 | I22: =Inputs!I11 -> 0.02 | J22: =Inputs!J11 -> 0.02
A23: =Inputs!A12 -> Corporate tax rate | C23: =Inputs!C12 -> 0.28 | D23: =Inputs!D12 -> 0.28 | E23: =Inputs!E12 -> 0.28 | F23: =Inputs!F12 -> 0.28 | G23: =Inputs!G12 -> 0.28 | H23: =Inputs!H12 -> 0.28 | I23: =Inputs!I12 -> 0.28 | J23: =Inputs!J12 -> 0.28
A24: Business-specific data
A25: BBAR year ending in calendar year: | D25: =D$18 -> 2021 | E25: =E$18 -> 2022 | F25: 2023 | G25: 2024 | H25: 2025 | I25: 2026 | J25: 2027
A26: ="Forecast changes in CPI used for revaluations, " & TEXT(B17, "mmm") & " year-ends" -> Forecast changes in CPI used for revaluations, Sep year-ends | D26: =IF(MONTH($B$17)=6,D19,D20) -> 0.04933586338 | E26: =IF(MONTH($B$17)=6,E19,E20) -> 0.04 | F26: 0.023 | G26: 0.02 | H26: 0.02 | I26: 0.02 | J26: 0.02
A27: CPI price-path | D27: =IF(MONTH($B$17)=6,D21,D22) -> 0 | E27: =IF(MONTH($B$17)=6,E21,E22) -> 0 | F27: =IF(Scenario=5,F22,F21) -> 0.04925236518 | G27: 0.03836140997 | H27: 0.02248782285 | I27: 0.02024771097 | J27: 0.02
A28: Year-end timing, tax approach and form of control
A29: =Inputs!A26 -> Tax payable (payable) or deferred tax (deferred) | B29: =Inputs!K26 -> deferred
A30: =Inputs!A27 -> Total revenue cap (TRC) or weighted avg price cap (WAPC) | B30: =Inputs!K27 -> WAPC
A31: Adjustment factor (for accelerated depreciation) existing | B31: =Inputs!K28 -> 0.8712376753
A32: Adjustment factor (for accelerated depreciation) additional | B32: =Inputs!K29 -> 0.8712376753
C33: =C1 -> Early base year | D33: =D1 -> Standard base year
A34: =Inputs!A31 -> Opening RAB | B34: =Inputs!K31 -> 383406.5398 | C34: =IF(EarlyBaseYear,B34,"~") -> 383406.5398 | D34: =IF(EarlyBaseYear,"~",B34) -> ~
A35: =Inputs!A32 -> Total depreciation | B35: =Inputs!K32 -> 18774.39254 | C35: 18774.39254 | D35: ~
A36: =Inputs!A33 -> Closing RAB | B36: =Inputs!K33 -> 387505.4907 | C36: 387505.4907 | D36: ~
A37: =Inputs!A34 -> Opening RAB excluding revaluations | B37: =Inputs!K34 -> 345486.4593 | C37: 345486.4593 | D37: ~
A38: =Inputs!A35 -> Adjusted depreciation | B38: =Inputs!K35 -> 16056.71112 | C38: 16056.71112 | D38: ~
A39: =Inputs!A36 -> Tax depreciation | B39: =Inputs!K36 -> 15807.35387 | C39: 15807.35387 | D39: ~
A40: =Inputs!A37 -> Opening regulatory tax asset value | B40: =Inputs!K37 -> 175593.7434 | C40: 175593.7434 | D40: ~
A41: =Inputs!A39 -> Term credit spread differential allowance | B41: =IF(Inputs!K39>0,Inputs!K39,0) -> 396.2463004 | C41: 396.2463004 | D41: =IF(EarlyBaseYear,"~",B41) -> ~
A42: =Inputs!A40 -> Opening deferred tax balance | B42: =Inputs!K40 -> -29314.04205 | C42: -29314.04205 | D42: =IF(EarlyBaseYear,"~",B42) -> ~
A43: =Inputs!A38 -> Amortisation of initial differences in asset values | B43: =Inputs!K38 -> 2292.498839
A44: Alternative X factor (insert "blank" if no alternative) | B44: =Inputs!K42 -> -0.07485632177
A45: DPP2 2022 prices | B45: =Inputs!K43 -> 51435.56862
A46: Operating expenditure
A47: =Inputs!A45 -> Operating expenditure in year ending 2021 | B47: =Inputs!K45 -> 18232
A48: =Inputs!A46 -> Operating expenditure in year ending 2022 | B48: =Inputs!K46 -> 19349.86826
A49: =Inputs!A47 -> Operating expenditure in year ending 2023 | B49: =Inputs!K47 -> 19916.2428 | C49: 1st BBAR year
A50: =Inputs!A48 -> Operating expenditure in year ending 2024 | B50: =Inputs!K48 -> 20406.7001
A51: =Inputs!A49 -> Operating expenditure in year ending 2025 | B51: =Inputs!K49 -> 21078.93564
A52: =Inputs!A50 -> Operating expenditure in year ending 2026 | B52: =Inputs!K50 -> 21672.41728
A53: =Inputs!A51 -> Operating expenditure in year ending 2027 | B53: =Inputs!K51 -> 22146.76068
A55: Operating expenditure in each year | D55: =TRANSPOSE(B47:B53) -> 18232 | E55: 19349.86826 | F55: 19916.2428 | G55: 20406.7001 | H55: 21078.93564 | I55: 21672.41728 | J55: 22146.76068
A56: Constant price revenue growth
A58: =Inputs!A54 -> Constant price revenue growth in year ending 2021 | B58: =Inputs!K54 -> 0
A59: =Inputs!A55 -> Constant price revenue growth in year ending 2022 | B59: =Inputs!K55 -> 0.01534142993
A60: =Inputs!A56 -> Constant price revenue growth in year ending 2023 | B60: =Inputs!K56 -> 0.01493318336 | C60: 1st pricing year
A61: =Inputs!A57 -> Constant price revenue growth in year ending 2024 | B61: =Inputs!K57 -> 0.01427319055
A62: =Inputs!A58 -> Constant price revenue growth in year ending 2025 | B62: =Inputs!K58 -> 0.01361786665
A63: =Inputs!A59 -> Constant price revenue growth in year ending 2026 | B63: =Inputs!K59 -> 0.01296971087
A64: =Inputs!A60 -> Constant price revenue growth in year ending 2027 | B64: =Inputs!K60 -> 0.01233841492
A65: =Inputs!A61 -> Constant price revenue growth in year ending 2028 | B65: =Inputs!K61 -> 0
A66: Constant price revenue growth in each year | D66: =TRANSPOSE(B58:B64) -> 0 | E66: 0.01534142993 | F66: 0.01493318336 | G66: 0.01427319055 | H66: 0.01361786665 | I66: 0.01296971087 | J66: 0.01233841492
A67: Value of commissioned assets
A69: =Inputs!A64 -> Value of commissioned assets, yr ending 2020 | B69: =Inputs!K64 -> 15767.35737
A70: =Inputs!A65 -> Value of commissioned assets, yr ending 2021 | B70: =Inputs!K65 -> 18279.35708
A71: =Inputs!A66 -> Value of commissioned assets, yr ending 2022 | B71: =Inputs!K66 -> 18254.94431
A72: =Inputs!A67 -> Value of commissioned assets, yr ending 2023 | B72: =Inputs!K67 -> 18972.8606 | C72: 1st BBAR year
A73: =Inputs!A68 -> Value of commissioned assets, yr ending 2024 | B73: =Inputs!K68 -> 19067.5832
A74: =Inputs!A69 -> Value of commissioned assets, yr ending 2025 | B74: =Inputs!K69 -> 20001.43564
A75: =Inputs!A70 -> Value of commissioned assets, yr ending 2026 | B75: =Inputs!K70 -> 21763.78953
A76: =Inputs!A71 -> Value of commissioned assets, yr ending 2027 | B76: =Inputs!K71 -> 21883.41421
A77: =Inputs!A72 -> Value of commissioned assets, yr ending 2028 | B77: =Inputs!K72 -> 21912.70725
A78: Value of commissioned assets in each year | C78: =TRANSPOSE(B69:B76) -> 15767.35737 | D78: 18279.35708 | E78: 18254.94431 | F78: 18972.8606 | G78: 19067.5832 | H78: 20001.43564 | I78: 21763.78953 | J78: 21883.41421
A79: Disposed assets
A80: =Inputs!A75 -> Value of disposed assets, yr ending 2020 | B80: =Inputs!K75 -> 563.5092671
A81: =Inputs!A76 -> Value of disposed assets, yr ending 2021 | B81: =Inputs!K76 -> 394.2996835
A82: =Inputs!A77 -> Value of disposed assets, yr ending 2022 | B82: =Inputs!K77 -> 410.0716708
A83: =Inputs!A78 -> Value of disposed assets, yr ending 2023 | B83: =Inputs!K78 -> 419.5033192 | C83: 1st BBAR year
A84: =Inputs!A79 -> Value of disposed assets, yr ending 2024 | B84: =Inputs!K79 -> 427.8933856
A85: =Inputs!A80 -> Value of disposed assets, yr ending 2025 | B85: =Inputs!K80 -> 436.4512533
A86: =Inputs!A81 -> Value of disposed assets, yr ending 2026 | B86: =Inputs!K81 -> 445.1802784
A87: =Inputs!A82 -> Value of disposed assets, yr ending 2027 | B87: =Inputs!K82 -> 454.083884
A88: =Inputs!A83 -> Value of disposed assets, yr ending 2028 | B88: =Inputs!K83 -> 463.1655617
A89: Value of disposed assets in each year | C89: =TRANSPOSE(B80:B87) -> 563.5092671 | D89: 394.2996835 | E89: 410.0716708 | F89: 419.5033192 | G89: 427.8933856 | H89: 436.4512533 | I89: 445.1802784 | J89: 454.083884
A90: Other regulated income
A91: =Inputs!A85 -> Other regulated income, yr ending 2023 | B91: =Inputs!K85 -> 333.1946789 | C91: 1st BBAR year
A92: =Inputs!A86 -> Other regulated income, yr ending 2024 | B92: =Inputs!K86 -> 339.8585725
A93: =Inputs!A87 -> Other regulated income, yr ending 2025 | B93: =Inputs!K87 -> 346.655744
A94: =Inputs!A88 -> Other regulated income, yr ending 2026 | B94: =Inputs!K88 -> 353.5888588
A95: =Inputs!A89 -> Other regulated income, yr ending 2027 | B95: =Inputs!K89 -> 360.660636
A96: =Inputs!A90 -> Other regulated income, yr ending 2028 | B96: =Inputs!K90 -> 367.8738487
A97: Other regulated income in each year | F97: =TRANSPOSE(B91:B95) -> 333.1946789 | G97: 339.8585725 | H97: 346.655744 | I97: 353.5888588 | J97: 360.660636

Sheet Timing
A1: Timing | F1: 1st BBAR year | G1: 2nd BBAR year | H1: 3rd BBAR year | I1: 4th BBAR year | J1: 5th BBAR year
A2: Calculations related to timing
A3: Inputs
A4: Days from mid-year to year-end | C4: ='GPB data'!B12 -> 182
A5: Days from revenue date to year-end | C5: ='GPB data'!B13 -> 148
A6: Vanilla WACC (67th percentile) | C6: =WACC -> 0.0607
A7: ='GPB data'!A17 -> Last day in the standard base year | C7: ='GPB data'!B17 -> 2021-09-30
A8: ='GPB data'!A14 -> Day prior to start of the regulatory period | C8: ='GPB data'!B14 -> 2022-09-30
A9: Calculations
A10: Year-end of 1st BBAR year | C10: =EOMONTH(C7,24) -> 2023-09-30
A11: TFrev for MAR calculations | C11: =(1+$C$6)^(C5/365) -> 1.024182288 | D11: Intra-year timing factor: discount from revenue date to end of year values
A12: Number of days between mid-period and revenue date | C12: =C4-C5 -> 34
F13: 1st BBAR year | G13: 2nd BBAR year | H13: 3rd BBAR year | I13: 4th BBAR year | J13: 5th BBAR year
A14: BBAR year ending in calendar year: | F14: ='GPB data'!F18 -> 2023 | G14: ='GPB data'!G18 -> 2024 | H14: ='GPB data'!H18 -> 2025 | I14: ='GPB data'!I18 -> 2026 | J14: ='GPB data'!J18 -> 2027
A15: Date of the end of the BBAR year | F15: =EOMONTH(C$7,24) -> 2023-09-30 | G15: =EOMONTH(F15,12) -> 2024-09-30 | H15: 2025-09-30 | I15: 2026-09-30 | J15: 2027-09-30
A16: Date of the start of the BBAR year | F16: =EOMONTH(C$7,12) -> 2022-09-30 | G16: 2023-09-30 | H16: 2024-09-30 | I16: 2025-09-30 | J16: 2026-09-30
A17: Number of days in the BBAR year | F17: =F15-F16 -> 365 | G17: 366 | H17: 365 | I17: 365 | J17: 365
A18: Date of the end of the BBAR period | F18: =EOMONTH(C7,24) -> 2023-09-30 | G18: =EOMONTH(F18,12) -> 2024-09-30 | H18: =EOMONTH(G18,12) -> 2025-09-30 | I18: =EOMONTH(H18,12) -> 2026-09-30 | J18: =EOMONTH(C8,48) -> 2026-09-30
A19: Date of the start of the BBAR period | F19: =C8 -> 2022-09-30 | G19: =F18 -> 2023-09-30 | H19: =G18 -> 2024-09-30 | I19: =H18 -> 2025-09-30 | J19: =I18 -> 2026-09-30
A20: Number of days in the BBAR period | F20: =F18-F19 -> 365 | G20: 366 | H20: 365 | I20: 365 | J20: 0
A21: Number of days in the latter half of the BBAR period | F21: =ROUNDDOWN(F20/2,0) -> 182 | G21: 183 | H21: 182 | I21: 182 | J21: 0
A22: Mid period date | F22: =F18-F21 -> 2023-04-01 | G22: 2024-03-31 | H22: 2025-04-01 | I22: 2026-04-01 | J22: 2026-09-30
A23: Tax date | F23: =F18-F21 -> 2023-04-01 | G23: 2024-03-31 | H23: 2025-04-01 | I23: 2026-04-01 | J23: 2026-09-30
A24: Number days between tax date and period-end | F24: =F18-F23 -> 182 | G24: 183 | H24: 182 | I24: 182 | J24: 0
A25: Number days between revenue date and period-end | F25: =F21-$C$12 -> 148 | G25: 149 | H25: 148 | I25: 148 | J25: -34
A26: Outputs
A27: TFrev for MAR calculations | C27: =$C$11 -> 1.024182288
A28: Number of days in the BBAR period | F28: =F20 -> 365 | G28: 366 | H28: 365 | I28: 365 | J28: 0
A29: Proportion of building blocks year that is in PV period | F29: =F28/F17 -> 1 | G29: 1 | H29: 1 | I29: 1 | J29: 0
A30: TFmid | F30: =(1+$C$6)^(F21/F17) -> 1.029819773 | G30: 1.029902908 | H30: 1.029819773 | I30: 1.029819773 | J30: 1
A31: TFtax | F31: =(1+$C$6)^(F24/F17) -> 1.029819773 | G31: 1.029902908 | H31: 1.029819773 | I31: 1.029819773 | J31: 1
A32: TFrev | F32: =(1+$C$6)^(F25/F17) -> 1.024182288 | G32: =(1+$C$6)^(G25/G17) -> 1.02428033 | H32: 1.024182288 | I32: 1.024182288 | J32: 0.9945257556

Sheet Diag
A2: Gas Pipeline Businesses - DPP reset - Years in the next regulatory period
B4: first day in quarter | C4: =EOMONTH(C5,-3)+1 -> 2019-10-01 | D4: 2020-01-01 | E4: 2020-04-01 | F4: 2020-07-01 | G4: 2020-10-01 | H4: 2021-01-01 | I4: 2021-04-01 | J4: 2021-07-01 | K4: 2021-10-01 | L4: =EOMONTH(L5,-3)+1 -> 2022-01-01 | M4: =EOMONTH(M5,-3)+1 -> 2022-04-01 | N4: =EOMONTH(N5,-3)+1 -> 2022-07-01 | O4: 2022-10-01 | P4: 2023-01-01 | Q4: 2023-04-01 | R4: 2023-07-01 | S4: 2023-10-01 | T4: 2024-01-01 | U4: 2024-04-01 | V4: 2024-07-01 | W4: 2024-10-01 | X4: 2025-01-01 | Y4: 2025-04-01 | Z4: 2025-07-01 | AA4: 2025-10-01 | AB4: 2026-01-01 | AC4: 2026-04-01 | AD4: 2026-07-01 | AE4: 2026-10-01 | AF4: 2027-01-01 | AG4: 2027-04-01 | AH4: 2027-07-01 | AI4: 2027-10-01 | AJ4: 2028-01-01 | AK4: 2028-04-01
B5: last day in quarter | C5: 2019-12-31 | D5: =EOMONTH(C5,3) -> 2020-03-31 | E5: =EOMONTH(D5,3) -> 2020-06-30 | F5: 2020-09-30 | G5: 2020-12-31 | H5: 2021-03-31 | I5: 2021-06-30 | J5: 2021-09-30 | K5: 2021-12-31 | L5: 2022-03-31 | M5: 2022-06-30 | N5: 2022-09-30 | O5: 2022-12-31 | P5: 2023-03-31 | Q5: 2023-06-30 | R5: 2023-09-30 | S5: 2023-12-31 | T5: 2024-03-31 | U5: 2024-06-30 | V5: 2024-09-30 | W5: 2024-12-31 | X5: 2025-03-31 | Y5: 2025-06-30 | Z5: 2025-09-30 | AA5: 2025-12-31 | AB5: 2026-03-31 | AC5: 2026-06-30 | AD5: 2026-09-30 | AE5: 2026-12-31 | AF5: 2027-03-31 | AG5: 2027-06-30 | AH5: 2027-09-30 | AI5: 2027-12-31 | AJ5: 2028-03-31 | AK5: 2028-06-30
A6: Columns in the RAB, Tax & BBAR sheets
C8: C | G8: D | K8: E | O8: F | S8: G | W8: H | AA8: I | AE8: J
B10: Last month in the quarter | C10: =C5 -> 2019-12-31 | D10: =D5 -> 2020-03-31 | E10: 2020-06-30 | F10: 2020-09-30 | G10: 2020-12-31 | H10: 2021-03-31 | I10: 2021-06-30 | J10: 2021-09-30 | K10: 2021-12-31 | L10: 2022-03-31 | M10: 2022-06-30 | N10: 2022-09-30 | O10: 2022-12-31 | P10: 2023-03-31 | Q10: 2023-06-30 | R10: 2023-09-30 | S10: 2023-12-31 | T10: 2024-03-31 | U10: 2024-06-30 | V10: 2024-09-30 | W10: 2024-12-31 | X10: 2025-03-31 | Y10: 2025-06-30 | Z10: 2025-09-30 | AA10: 2025-12-31 | AB10: 2026-03-31 | AC10: 2026-06-30 | AD10: 2026-09-30 | AE10: 2026-12-31 | AF10: 2027-03-31 | AG10: 2027-06-30
A12: 30 June year-end for ID (Vector, GasNet)
G13: Standard base year | K13: Gap year | O13: 1st BBAR year | S13: 2nd BBAR year | W13: 3rd BBAR year | AA13: 4th BBAR year | AE13: 5th BBAR year
B14: Disclosure years | F14: =TEXT(F$4,"dd.mm.yy") & " to " & TEXT(I$5,"dd.mm.yy") -> 01.07.20 to 30.06.21 | N14: =TEXT(N$4,"dd.mm.yy") & " to " & TEXT(Q$5,"dd.mm.yy") -> 01.07.22 to 30.06.23 | R14: =TEXT(R$4,"dd.mm.yy") & " to " & TEXT(U$5,"dd.mm.yy") -> 01.07.23 to 30.06.24 | V14: =TEXT(V$4,"dd.mm.yy") & " to " & TEXT(Y$5,"dd.mm.yy") -> 01.07.24 to 30.06.25 | Z14: =TEXT(Z$4,"dd.mm.yy") & " to " & TEXT(AC$5,"dd.mm.yy") -> 01.07.25 to 30.06.26 | AD14: =TEXT(AD$4,"dd.mm.yy") & " to " & TEXT(AG$5,"dd.mm.yy") -> 01.07.26 to 30.06.27
B16: Pricing years | O16: =TEXT(O$4,"dd.mm.yy") & " to " & TEXT(R$5,"dd.mm.yy") -> 01.10.22 to 30.09.23 | S16: =TEXT(S$4,"dd.mm.yy") & " to " & TEXT(V$5,"dd.mm.yy") -> 01.10.23 to 30.09.24 | W16: =TEXT(W$4,"dd.mm.yy") & " to " & TEXT(Z$5,"dd.mm.yy") -> 01.10.24 to 30.09.25 | AA16: =TEXT(AA$4,"dd.mm.yy") & " to " & TEXT(AD$5,"dd.mm.yy") -> 01.10.25 to 30.09.26 | AE16: =TEXT(AE$4,"dd.mm.yy") & " to " & TEXT(AH$5,"dd.mm.yy") -> 01.10.26 to 30.09.27
B18: Regulatory period | O18: =TEXT(O$4,"dd.mm.yy") & " to " & TEXT(AH$5,"dd.mm.yy") -> 01.10.22 to 30.09.27
A19: 30 September year-end for ID (Powerco, First Gas Distribution, First Gas Transmission)
H20: Standard base year | L20: Gap year | P20: 1st BBAR year | T20: 2nd BBAR year | X20: 3rd BBAR year | AB20: 4th BBAR year
B21: Disclosure years | C21: =TEXT(C$4,"dd.mm.yy") & " to " & TEXT(F$5,"dd.mm.yy") -> 01.10.19 to 30.09.20 | G21: =TEXT(G$4,"dd.mm.yy") & " to " & TEXT(J$5,"dd.mm.yy") -> 01.10.20 to 30.09.21 | O21: =TEXT(O$4,"dd.mm.yy") & " to " & TEXT(R$5,"dd.mm.yy") -> 01.10.22 to 30.09.23 | S21: =TEXT(S$4,"dd.mm.yy") & " to " & TEXT(V$5,"dd.mm.yy") -> 01.10.23 to 30.09.24 | W21: =TEXT(W$4,"dd.mm.yy") & " to " & TEXT(Z$5,"dd.mm.yy") -> 01.10.24 to 30.09.25 | AA21: =TEXT(AA$4,"dd.mm.yy") & " to " & TEXT(AD$5,"dd.mm.yy") -> 01.10.25 to 30.09.26
B23: Pricing years | O23: =TEXT(O$4,"dd.mm.yy") & " to " & TEXT(R$5,"dd.mm.yy") -> 01.10.22 to 30.09.23 | S23: =TEXT(S$4,"dd.mm.yy") & " to " & TEXT(V$5,"dd.mm.yy") -> 01.10.23 to 30.09.24 | W23: =TEXT(W$4,"dd.mm.yy") & " to " & TEXT(Z$5,"dd.mm.yy") -> 01.10.24 to 30.09.25 | AA23: =TEXT(AA$4,"dd.mm.yy") & " to " & TEXT(AD$5,"dd.mm.yy") -> 01.10.25 to 30.09.26
B25: Regulatory period | O25: =TEXT(O$4,"dd.mm.yy") & " to " & TEXT(AH$5,"dd.mm.yy") -> 01.10.22 to 30.09.27
P26: 1st MAR year | T26: 2nd MAR year | X26: 3rd MAR year | AB26: 4th MAR year
A27: Columns in the MAR sheet: | E27: C | G27: D | K27: E | O27: F | S27: G | W27: H | AA27: I
J33: =B4 -> first day in quarter | L33: =L4 -> 2022-01-01 | M33: =M4 -> 2022-04-01 | N33: 2022-07-01 | O33: 2022-10-01 | P33: 2023-01-01 | Q33: 2023-04-01 | R33: 2023-07-01 | S33: 2023-10-01 | T33: 2024-01-01 | U33: 2024-04-01 | V33: 2024-07-01 | W33: 2024-10-01 | X33: 2025-01-01 | Y33: 2025-04-01 | Z33: 2025-07-01 | AA33: 2025-10-01 | AB33: 2026-01-01 | AC33: 2026-04-01 | AD33: 2026-07-01 | AE33: 2026-10-01 | AF33: 2027-01-01 | AG33: 2027-04-01 | AH33: 2027-07-01 | AI33: 2027-10-01 | AJ33: 2028-01-01 | AK33: 2028-04-01
J34: =B5 -> last day in quarter | L34: =L5 -> 2022-03-31 | M34: 2022-06-30 | N34: 2022-09-30 | O34: 2022-12-31 | P34: 2023-03-31 | Q34: 2023-06-30 | R34: 2023-09-30 | S34: 2023-12-31 | T34: 2024-03-31 | U34: 2024-06-30 | V34: 2024-09-30 | W34: 2024-12-31 | X34: 2025-03-31 | Y34: 2025-06-30 | Z34: 2025-09-30 | AA34: 2025-12-31 | AB34: 2026-03-31 | AC34: 2026-06-30 | AD34: 2026-09-30 | AE34: 2026-12-31 | AF34: 2027-03-31 | AG34: 2027-06-30 | AH34: 2027-09-30 | AI34: 2027-12-31 | AJ34: 2028-03-31 | AK34: 2028-06-30

Sheet RAB
A1: Regulatory asset base | B1: Values, not time series | C1: Early base year | D1: Standard base year | E1: Gap year | F1: 1st BBAR year | G1: 2nd BBAR year | H1: 3rd BBAR year | I1: 4th BBAR year | J1: 5th BBAR year | L1: Spec ref | M1: GTB IM reference | N1: GDB IM reference
A2: Calculations relating to RAB values for full years
A3: Inputs | J3: =GPB_name -> Powerco
A4: BBAR year ending in calendar year: | C4: ='GPB data'!C18 -> 2020 | D4: ='GPB data'!D18 -> 2021 | E4: ='GPB data'!E18 -> 2022 | F4: ='GPB data'!F18 -> 2023 | G4: ='GPB data'!G18 -> 2024 | H4: ='GPB data'!H18 -> 2025 | I4: ='GPB data'!I18 -> 2026 | J4: ='GPB data'!J18 -> 2027
A5: Opening RAB | C5: ='GPB data'!C34 -> 383406.5398 | D5: ='GPB data'!D34 -> ~
A6: Total depreciation | C6: ='GPB data'!C35 -> 18774.39254 | D6: ='GPB data'!D35 -> ~
A7: Closing RAB | C7: ='GPB data'!C36 -> 387505.4907 | D7: ='GPB data'!D36 -> ~
A8: Value of disposed assets | D8: ='GPB data'!D89 -> 394.2996835 | E8: ='GPB data'!E89 -> 410.0716708 | F8: ='GPB data'!F89 -> 419.5033192 | G8: ='GPB data'!G89 -> 427.8933856 | H8: ='GPB data'!H89 -> 436.4512533 | I8: ='GPB data'!I89 -> 445.1802784 | J8: ='GPB data'!J89 -> 454.083884
A9: Value of commissioned assets | D9: ='GPB data'!D78 -> 18279.35708 | E9: ='GPB data'!E78 -> 18254.94431 | F9: ='GPB data'!F78 -> 18972.8606 | G9: ='GPB data'!G78 -> 19067.5832 | H9: ='GPB data'!H78 -> 20001.43564 | I9: ='GPB data'!I78 -> 21763.78953 | J9: ='GPB data'!J78 -> 21883.41421
A10: Remaining life for additional assets before adjustment factor | B10: ='GPB data'!B10 -> 45
A11: Forecast changes in CPI used for revaluations | D11: ='GPB data'!D26 -> 0.04933586338 | E11: ='GPB data'!E26 -> 0.04 | F11: ='GPB data'!F26 -> 0.023 | G11: ='GPB data'!G26 -> 0.02 | H11: ='GPB data'!H26 -> 0.02 | I11: ='GPB data'!I26 -> 0.02 | J11: ='GPB data'!J26 -> 0.02
A12: Adjustment factor (for accelerated depreciation) existing | B12: ='GPB data'!B31 -> 0.8712376753
A13: Adjustment factor (for accelerated depreciation) additional | B13: ='GPB data'!B32 -> 0.8712376753
A14: Remaining life for additional assets after adjustment | B14: =B10*B13 -> 39.20569539
A15: Calculations
A16: Roll forward of existing assets | C16: Early base year | D16: Base year | E16: Gap year | F16: First year of reg period
A17: BBAR year ending in calendar year: | C17: =C$4 -> 2020 | D17: =D$4 -> 2021 | E17: 2022 | F17: 2023 | G17: 2024 | H17: =H$4 -> 2025 | I17: 2026 | J17: 2027
A18: Remaining asset life for existing assets | C18: =IF(EarlyBaseYear,100%*C5/C6,"~") -> 20.42178136 | D18: =IF(EarlyBaseYear,C18-1,100%*D5/D6) -> 19.42178136 | E18: =D18-1 -> 18.42178136 | F18: =IF(EarlyBaseYear,B12*C5/C6-3,B12*D5/D6-2) -> 14.79222532 | G18: =F18-1 -> 13.79222532 | H18: =G18-1 -> 12.79222532 | I18: 11.79222532 | J18: 10.79222532 | M18: 4.2.2(3)(a) | N18: 4.2.2(3)(a)
A19: Opening RAB value for existing assets | C19: =IF(EarlyBaseYear,C5,"~") -> 383406.5398 | D19: =IF(EarlyBaseYear,C23,D5) -> 387505.4907 | E19: =D23 -> 386238.4293 | F19: =E23 -> 380279.6428 | G19: 362880.1009 | H19: =G23 -> 343383.5118 | I19: 322955.9927 | J19: 301567.373 | M19: 4.2.1(2)(b) | N19: 4.2.1(2)(b)
A20: Value of disposed assets | D20: =D8 -> 394.2996835 | E20: 410.0716708 | F20: 419.5033192 | G20: 427.8933856 | H20: 436.4512533 | I20: 445.1802784 | J20: 454.083884 | L20: simple ref
A21: Revaluation for existing assets | D21: =(D19*0.999-D20)*D11 -> 19079.34691 | E21: 15417.68477 | F21: 8728.036777 | G21: 7241.786549 | H21: 6852.07354 | I21: 6443.757129 | J21: 6016.234436 | M21: 4.2.3(2)(a) | N21: 4.2.3(2)(a)
A22: Depreciation for existing assets | D22: =D19/D18 -> 19952.10858 | E22: 20966.39959 | F22: 25708.07533 | G22: 26310.48236 | H22: =H19/H18 -> 26843.1413 | I22: 27387.19656 | J22: 27943.02047 | M22: 4.2.2(2)(a)(ii) | N22: 4.2.2(2)(a)(ii)
A23: Closing RAB value for existing assets | C23: =IF(EarlyBaseYear,C7,"~") -> 387505.4907 | D23: =IF(EarlyBaseYear,D19-D20+D21-D22,D7) -> 386238.4293 | E23: =E19-E20+E21-E22 -> 380279.6428 | F23: 362880.1009 | G23: 343383.5118 | H23: =H19-H20+H21-H22 -> 322955.9927 | I23: 301567.373 | J23: 279186.5031 | M23: 4.2.1(3)(b) | N23: 4.2.1(3)(b)
A24: Individual roll forward of additional assets
A25: BBAR year ending in calendar year: | D25: =D$4 -> 2021 | E25: 2022 | F25: 2023 | G25: 2024 | H25: =H$4 -> 2025 | I25: 2026 | J25: 2027
A26: Value of commissioned assets | D26: =D$9 -> 18279.35708 | E26: 18254.94431 | F26: 18972.8606 | G26: 19067.5832 | H26: =H$9 -> 20001.43564 | I26: 21763.78953 | J26: 21883.41421 | L26: simple ref
A27: =" Assets commissioned in yr ending " & C28 -> Assets commissioned in yr ending 2021
A28: Year asset is added during modelling period | C28: =D25 -> 2021
A29: Opening RAB | D29: 0 | E29: =D34 -> 18279.35708 | F29: 18595.09143 | G29: 18526.4226 | H29: =G34 -> 18388.86585 | I29: 18238.10972 | J29: 18073.66687 | M29: 4.2.1(4) | N29: 4.2.1(4)
A30: Years of remaining life | D30: =B10 -> 45 | E30: =D30-1 -> 44 | F30: =(E30-1)*B13 -> 37.46322004 | G30: =F30-1 -> 36.46322004 | H30: =G30-1 -> 35.46322004 | I30: 34.46322004 | J30: 33.46322004 | M30: 4.2.2(3)(b) | N30: 4.2.2(3)(b)
A31: Revaluation of assets | D31: =D29*D$11 -> 0 | E31: =E29*E$11 -> 731.1742833 | F31: 427.6871029 | G31: 370.5284521 | H31: 367.777317 | I31: 364.7621944 | J31: 361.4733375 | M31: 4.2.3(2) | N31: 4.2.3(2)
A32: Depreciation of assets | D32: =D29/D30 -> 0 | E32: 415.4399337 | F32: 496.3559302 | G32: 508.0852044 | H32: =H29/H30 -> 518.5334505 | I32: 529.2050394 | J32: 540.1054308 | M32: 4.2.2(2)(b) | N32: 4.2.2(2)(b)
A33: ="RAB of asset commissioned in year ending " & C28 -> RAB of asset commissioned in year ending 2021 | D33: =IF(EarlyBaseYear,D$26,0) -> 18279.35708 | E33: =IF($C28=E$25,E$26,0) -> 0 | F33: 0 | G33: 0 | H33: 0 | I33: 0 | J33: 0
A34: Closing RAB | D34: =D29+D31-D32+D33 -> 18279.35708 | E34: =E29+E31-E32+E33 -> 18595.09143 | F34: =F29+F31-F32+F33 -> 18526.4226 | G34: 18388.86585 | H34: =H29+H31-H32+H33 -> 18238.10972 | I34: 18073.66687 | J34: 17895.03478 | M34: 4.2.1(5)(b) | N34: 4.2.1(5)(b)
A35: =" Assets commissioned in yr ending " & C36 -> Assets commissioned in yr ending 2022
A36: Year asset is added during modelling period | C36: =E25 -> 2022
A37: Opening RAB | D37: 0 | E37: =D42 -> 0 | F37: 18254.94431 | G37: 18198.60606 | H37: =G42 -> 18075.1302 | I37: 17939.16755 | J37: 17790.25476 | M37: =M29 -> 4.2.1(4) | N37: 4.2.1(4)
A38: Years of remaining life | D38: =$B$10+$C36-D$25 -> 46 | E38: =D38-1 -> 45 | F38: =(E38-1)*B13 -> 38.33445771 | G38: =F38-1 -> 37.33445771 | H38: =G38-1 -> 36.33445771 | I38: 35.33445771 | J38: 34.33445771 | M38: 4.2.2(3)(b) | N38: 4.2.2(3)(b)
A39: Revaluation of assets | D39: =D37*D$11 -> 0 | E39: =E37*E$11 -> 0 | F39: 419.8637191 | G39: 363.9721211 | H39: 361.5026039 | I39: 358.7833509 | J39: 355.8050953 | M39: 4.2.3(2) | N39: 4.2.3(2)
A40: Depreciation of assets | D40: =D37/D38 -> 0 | E40: 0 | F40: 476.2019707 | G40: 487.4479816 | H40: =H37/H38 -> 497.4652529 | I40: 507.6961331 | J40: 518.1457914 | M40: 4.2.2(2)(b) | N40: 4.2.2(2)(b)
A41: ="RAB of asset commissioned in year ending " & C36 -> RAB of asset commissioned in year ending 2022 | D41: =IF($C36=D$25,D$26,0) -> 0 | E41: 18254.94431 | F41: 0 | G41: 0 | H41: 0 | I41: 0 | J41: 0
A42: Closing RAB | D42: =D37+D39-D40+D41 -> 0 | E42: =E37+E39-E40+E41 -> 18254.94431 | F42: =F37+F39-F40+F41 -> 18198.60606 | G42: 18075.1302 | H42: =H37+H39-H40+H41 -> 17939.16755 | I42: 17790.25476 | J42: 17627.91407 | M42: 4.2.1(5)(b) | N42: 4.2.1(5)(b)
A43: =" Assets commissioned in yr ending " & C44 -> Assets commissioned in yr ending 2023
A44: Year asset is added during modelling period | C44: =F25 -> 2023
A45: Opening RAB | D45: 0 | E45: =D50 -> 0 | F45: 0 | G45: 18972.8606 | H45: =G50 -> 18855.72011 | I45: 18726.03791 | J45: 18583.34618 | M45: =M37 -> 4.2.1(4) | N45: 4.2.1(4)
A46: Years of remaining life | D46: =$B$10+$C44-D$25 -> 47 | E46: =D46-1 -> 46 | F46: =(E46-1)*B13 -> 39.20569539 | G46: =F46-1 -> 38.20569539 | H46: =G46-1 -> 37.20569539 | I46: 36.20569539 | J46: 35.20569539 | M46: 4.2.2(3)(b) | N46: 4.2.2(3)(b)
A47: Revaluation of assets | D47: =D45*D$11 -> 0 | E47: =E45*E$11 -> 0 | F47: 0 | G47: 379.4572121 | H47: 377.1144023 | I47: 374.5207582 | J47: 371.6669235 | M47: 4.2.3(2) | N47: 4.2.3(2)
A48: Depreciation of assets | D48: =D45/D46 -> 0 | E48: 0 | F48: 0 | G48: 496.5977039 | H48: =H45/H46 -> 506.7966051 | I48: 517.2124913 | J48: 527.8505643 | M48: 4.2.2(2)(b) | N48: 4.2.2(2)(b)
A49: ="RAB of asset commissioned in year ending " & C44 -> RAB of asset commissioned in year ending 2023 | D49: =IF($C44=D$25,D$26,0) -> 0 | E49: 0 | F49: 18972.8606 | G49: 0 | H49: 0 | I49: 0 | J49: 0
A50: Closing RAB | D50: =D45+D47-D48+D49 -> 0 | E50: =E45+E47-E48+E49 -> 0 | F50: 18972.8606 | G50: 18855.72011 | H50: =H45+H47-H48+H49 -> 18726.03791 | I50: 18583.34618 | J50: 18427.16254 | M50: 4.2.1(5)(b) | N50: 4.2.1(5)(b)
A51: =" Assets commissioned in yr ending " & C52 -> Assets commissioned in yr ending 2024
A52: Year asset is added during modelling period | C52: =G25 -> 2024
A53: Opening RAB | D53: 0 | E53: =D58 -> 0 | F53: 0 | G53: 0 | H53: =G58 -> 19067.5832 | I53: 18948.17019 | J53: 18816.0835 | M53: =M45 -> 4.2.1(4) | N53: 4.2.1(4)
A54: Years of remaining life | D54: =$B$10+$C52-D$25 -> 48 | E54: =D54-1 -> 47 | F54: =(E54-1)*B13 -> 40.07693306 | G54: =F54-1 -> 39.07693306 | H54: =G54-1 -> 38.07693306 | I54: 37.07693306 | J54: 36.07693306 | M54: 4.2.2(3)(b) | N54: 4.2.2(3)(b)
A55: Revaluation of assets | D55: =D53*D$11 -> 0 | E55: =E53*E$11 -> 0 | F55: 0 | G55: 0 | H55: 381.3516641 | I55: 378.9634038 | J55: 376.3216699 | M55: 4.2.3(2) | N55: 4.2.3(2)
A56: Depreciation of assets | D56: =D53/D54 -> 0 | E56: 0 | F56: 0 | G56: 0 | H56: =H53/H54 -> 500.7646801 | I56: 511.0500956 | J56: 521.5544088 | M56: 4.2.2(2)(b) | N56: 4.2.2(2)(b)
A57: ="RAB of asset commissioned in year ending " & C52 -> RAB of asset commissioned in year ending 2024 | D57: =IF($C52=D$25,D$26,0) -> 0 | E57: 0 | F57: 0 | G57: 19067.5832 | H57: 0 | I57: 0 | J57: 0
A58: Closing RAB | D58: =D53+D55-D56+D57 -> 0 | E58: =E53+E55-E56+E57 -> 0 | F58: 0 | G58: 19067.5832 | H58: =H53+H55-H56+H57 -> 18948.17019 | I58: 18816.0835 | J58: 18670.85076 | M58: 4.2.1(5)(b) | N58: 4.2.1(5)(b)
A59: =" Assets commissioned in yr ending " & C60 -> Assets commissioned in yr ending 2025
A60: Year asset is added during modelling period | C60: =H25 -> 2025
A61: Opening RAB | D61: 0 | E61: =D66 -> 0 | F61: 0 | G61: 0 | H61: =G66 -> 0 | I61: 20001.43564 | J61: 19874.39189 | M61: =M53 -> 4.2.1(4) | N61: 4.2.1(4)
A62: Years of remaining life | D62: =$B$10+$C60-D$25 -> 49 | E62: =D62-1 -> 48 | F62: =(E62-1)*B13 -> 40.94817074 | G62: =F62-1 -> 39.94817074 | H62: =G62-1 -> 38.94817074 | I62: 37.94817074 | J62: 36.94817074 | M62: 4.2.2(3)(b) | N62: 4.2.2(3)(b)
A63: Revaluation of assets | D63: =D61*D$11 -> 0 | E63: =E61*E$11 -> 0 | F63: 0 | G63: 0 | H63: 0 | I63: 400.0287128 | J63: 397.4878379 | M63: 4.2.3(2) | N63: 4.2.3(2)
A64: Depreciation of assets | D64: =D61/D62 -> 0 | E64: 0 | F64: 0 | G64: 0 | H64: =H61/H62 -> 0 | I64: 527.0724583 | J64: 537.8992111 | M64: 4.2.2(2)(b) | N64: 4.2.2(2)(b)
A65: ="RAB of asset commissioned in year ending " & C60 -> RAB of asset commissioned in year ending 2025 | D65: =IF($C60=D$25,D$26,0) -> 0 | E65: 0 | F65: 0 | G65: 0 | H65: 20001.43564 | I65: 0 | J65: 0
A66: Closing RAB | D66: =D61+D63-D64+D65 -> 0 | E66: =E61+E63-E64+E65 -> 0 | F66: 0 | G66: 0 | H66: =H61+H63-H64+H65 -> 20001.43564 | I66: 19874.39189 | J66: 19733.98052 | M66: 4.2.1(5)(b) | N66: 4.2.1(5)(b)
A67: =" Assets commissioned in yr ending " & C68 -> Assets commissioned in yr ending 2026
A68: Year asset is added during modelling period | C68: =I25 -> 2026
A69: Opening RAB | D69: 0 | E69: =D74 -> 0 | F69: 0 | G69: 0 | H69: =G74 -> 0 | I69: 0 | J69: 21763.78953 | M69: =M61 -> 4.2.1(4) | N69: 4.2.1(4)
A70: Years of remaining life | D70: =$B$10+$C68-D$25 -> 50 | E70: =D70-1 -> 49 | F70: =(E70-1)*B13 -> 41.81940841 | G70: =F70-1 -> 40.81940841 | H70: =G70-1 -> 39.81940841 | I70: 38.81940841 | J70: 37.81940841 | M70: 4.2.2(3)(b) | N70: 4.2.2(3)(b)
A71: Revaluation of assets | D71: =D69*D$11 -> 0 | E71: =E69*E$11 -> 0 | F71: 0 | G71: 0 | H71: 0 | I71: 0 | J71: 435.2757906 | M71: 4.2.3(2) | N71: 4.2.3(2)
A72: Depreciation of assets | D72: =D69/D70 -> 0 | E72: 0 | F72: 0 | G72: 0 | H72: =H69/H70 -> 0 | I72: 0 | J72: 575.4661546 | M72: 4.2.2(2)(b) | N72: 4.2.2(2)(b)
A73: ="RAB of asset commissioned in year ending " & C68 -> RAB of asset commissioned in year ending 2026 | D73: =IF($C68=D$25,D$26,0) -> 0 | E73: 0 | F73: 0 | G73: 0 | H73: 0 | I73: 21763.78953 | J73: 0
A74: Closing RAB | D74: =D69+D71-D72+D73 -> 0 | E74: =E69+E71-E72+E73 -> 0 | F74: 0 | G74: 0 | H74: =H69+H71-H72+H73 -> 0 | I74: 21763.78953 | J74: 21623.59917 | M74: 4.2.1(5)(b) | N74: 4.2.1(5)(b)
A75: =" Assets commissioned in yr ending " & C76 -> Assets commissioned in yr ending 2027
A76: Year asset is added during modelling period | C76: =J25 -> 2027
A77: Opening RAB | D77: 0 | E77: =D82 -> 0 | F77: 0 | G77: 0 | H77: =G82 -> 0 | I77: 0 | J77: 0 | M77: =M69 -> 4.2.1(4) | N77: 4.2.1(4)
A78: Years of remaining life | D78: =$B$10+$C76-D$25 -> 51 | E78: =D78-1 -> 50 | F78: =(E78-1)*B13 -> 42.69064609 | G78: =F78-1 -> 41.69064609 | H78: =G78-1 -> 40.69064609 | I78: 39.69064609 | J78: 38.69064609 | M78: 4.2.2(3)(b) | N78: 4.2.2(3)(b)
A79: Revaluation of assets | D79: =D77*D$11 -> 0 | E79: =E77*E$11 -> 0 | F79: 0 | G79: 0 | H79: 0 | I79: 0 | J79: 0 | M79: 4.2.3(2) | N79: 4.2.3(2)
A80: Depreciation of assets | D80: =D77/D78 -> 0 | E80: 0 | F80: 0 | G80: 0 | H80: =H77/H78 -> 0 | I80: 0 | J80: 0 | M80: 4.2.2(2)(b) | N80: 4.2.2(2)(b)
A81: ="RAB of asset commissioned in year ending " & C76 -> RAB of asset commissioned in year ending 2027 | D81: =IF($C76=D$25,D$26,0) -> 0 | E81: 0 | F81: 0 | G81: 0 | H81: 0 | I81: 0 | J81: 21883.41421
A82: Closing RAB | D82: =D77+D79-D80+D81 -> 0 | E82: =E77+E79-E80+E81 -> 0 | F82: 0 | G82: 0 | H82: =H77+H79-H80+H81 -> 0 | I82: 0 | J82: 21883.41421 | M82: 4.2.1(5)(b) | N82: 4.2.1(5)(b)
A83: Aggregate roll forward of additional assets
A84: Opening RAB of commissioned additional assets | D84: =D29+D37+D45+D53+D61+D69+D77 -> 0 | E84: =D87 -> 18279.35708 | F84: =E87 -> 36850.03574 | G84: 55697.88926 | H84: =G87 -> 74387.29936 | I84: 93852.921 | J84: 114901.5327 | M84: 4.2.1(4) | N84: 4.2.1(4)
A85: Revaluation of commissioned additional assets | D85: =D31+D39+D47+D55+D63+D71+D79 -> 0 | E85: 731.1742833 | F85: 847.550822 | G85: 1113.957785 | H85: 1487.745987 | I85: 1877.05842 | J85: 2298.030655
A86: Depreciation of commissioned additional assets | D86: 0 | E86: 415.4399337 | F86: 972.5579009 | G86: 1492.13089 | H86: 2023.559989 | I86: 2592.236218 | J86: 3221.021561
A87: Closing RAB of commissioned additional assets | D87: =D34+D42+D50+D58+D66+D74+D82 -> 18279.35708 | E87: 36850.03574 | F87: 55697.88926 | G87: 74387.29936 | H87: 93852.921 | I87: 114901.5327 | J87: 135861.956
A88: Combined roll forward of existing and additional assets
A89: BBAR year ending in calendar year: | D89: =D$4 -> 2021 | E89: 2022 | F89: 2023 | G89: 2024 | H89: =H$4 -> 2025 | I89: 2026 | J89: 2027
A90: Aggregate opening RAB value | D90: =D19+D84 -> 387505.4907 | E90: 404517.7864 | F90: 417129.6786 | G90: 418577.9902 | H90: 417770.8111 | I90: 416808.9137 | J90: 416468.9058 | M90: 4.2.1(1) | N90: 4.2.1(1)
A91: Total revaluation | D91: =D21+D85 -> 19079.34691 | E91: 16148.85905 | F91: 9575.587599 | G91: 8355.744334 | H91: 8339.819527 | I91: 8320.815549 | J91: 8314.26509 | M91: 4.2.3(1) | N91: 4.2.3(1)
A92: Total depreciation | D92: 19952.10858 | E92: 21381.83953 | F92: 26680.63323 | G92: 27802.61325 | H92: 28866.70128 | I92: 29979.43278 | J92: 31164.04203 | M92: 4.2.2(1) | N92: 4.2.2(1)
A93: Aggregate closing RAB value | E93: =E23+E87 -> 417129.6786 | F93: 418577.9902 | G93: 417770.8111 | H93: 416808.9137 | I93: 416468.9058 | J93: 415048.4592
A94: Check that closing value is as expected. Should = 0 | E94: =E90+E26+E91-E92-E20-E93 -> 0 | F94: 0 | G94: 0 | H94: 0 | I94: 0 | J94: 0
A95: Outputs
A96: BBAR year ending in calendar year: | C96: =C$4 -> 2020 | D96: 2021 | E96: 2022 | F96: 2023 | G96: 2024 | H96: =H$4 -> 2025 | I96: 2026 | J96: 2027
A97: Value of commissioned assets
A98: Remaining asset life for existing assets | D98: =D18 -> 19.42178136 | E98: 18.42178136 | F98: 14.79222532 | G98: 13.79222532 | H98: 12.79222532 | I98: 11.79222532 | J98: 10.79222532 | L98: simple ref
A99: Total depreciation | D99: =D92 -> 19952.10858 | E99: 21381.83953 | F99: 26680.63323 | G99: 27802.61325 | H99: =H92 -> 28866.70128 | I99: 29979.43278 | J99: 31164.04203 | L99: simple ref
A100: Aggregate opening RAB value | C100: =C19 -> 383406.5398 | D100: =D90 -> 387505.4907 | E100: =E90 -> 404517.7864 | F100: 417129.6786 | G100: 418577.9902 | H100: =H90 -> 417770.8111 | I100: 416808.9137 | J100: 416468.9058 | L100: simple ref
A101: Total revaluation | F101: =F91 -> 9575.587599 | G101: 8355.744334 | H101: =H91 -> 8339.819527 | I101: 8320.815549 | J101: 8314.26509 | L101: simple ref
A102: Closing RAB value, 4th BBAR year | B102: =J93 -> 415048.4592

Sheet Tax
A1: Tax calculations | B1: Values, not time series | C1: Early base year | D1: Standard base year | E1: Gap year | F1: 1st BBAR year | G1: 2nd BBAR year | H1: 3rd BBAR year | I1: 4th BBAR year | J1: 5th BBAR year | K1: Spec ref | L1: GTB IM reference | M1: GDB IM reference
A2: Calculation of adjusted depreciation, tax depreciation, deferred tax, notional deductible interest and regulatory tax adjustments.
A3: Inputs | J3: =GPB_name -> Powerco
A4: BBAR year ending in calendar year: | C4: ='GPB data'!C18 -> 2020 | D4: ='GPB data'!D18 -> 2021 | E4: ='GPB data'!E18 -> 2022 | F4: ='GPB data'!F18 -> 2023 | G4: ='GPB data'!G18 -> 2024 | H4: ='GPB data'!H18 -> 2025 | I4: ='GPB data'!I18 -> 2026 | J4: ='GPB data'!J18 -> 2027 | K4: GPB data
A5: Corporate tax rate | C5: ='GPB data'!C23 -> 0.28 | D5: ='GPB data'!D23 -> 0.28 | E5: ='GPB data'!E23 -> 0.28 | F5: ='GPB data'!F23 -> 0.28 | G5: ='GPB data'!G23 -> 0.28 | H5: ='GPB data'!H23 -> 0.28 | I5: ='GPB data'!I23 -> 0.28 | J5: ='GPB data'!J23 -> 0.28 | K5: GPB data
A6: Value of commissioned assets | C6: ='GPB data'!C78 -> 15767.35737 | D6: ='GPB data'!D78 -> 18279.35708 | E6: ='GPB data'!E78 -> 18254.94431 | F6: ='GPB data'!F78 -> 18972.8606 | G6: ='GPB data'!G78 -> 19067.5832 | H6: ='GPB data'!H78 -> 20001.43564 | I6: ='GPB data'!I78 -> 21763.78953 | J6: ='GPB data'!J78 -> 21883.41421 | K6: RAB
A7: Remaining life for additional assets | D7: ='GPB data'!B10 -> 45 | K7: GPB data
A8: Amortisation of initial differences in asset values | B8: ='GPB data'!B43 -> 2292.498839 | K8: GPB data
A9: Value of disposed assets | D9: ='GPB data'!D89 -> 394.2996835 | E9: ='GPB data'!E89 -> 410.0716708 | F9: ='GPB data'!F89 -> 419.5033192 | G9: ='GPB data'!G89 -> 427.8933856 | H9: ='GPB data'!H89 -> 436.4512533 | I9: ='GPB data'!I89 -> 445.1802784 | J9: ='GPB data'!J89 -> 454.083884 | K9: RAB
A10: Opening RAB excluding revaluations | C10: ='GPB data'!C37 -> 345486.4593 | D10: ='GPB data'!D37 -> ~ | K10: GPB data
A11: Adjusted depreciation | C11: ='GPB data'!C38 -> 16056.71112 | D11: ='GPB data'!D38 -> ~ | K11: GPB data
A12: Tax depreciation | C12: ='GPB data'!C39 -> 15807.35387 | D12: ='GPB data'!D39 -> ~ | K12: GPB data
A13: Opening regulatory tax asset value | C13: ='GPB data'!C40 -> 175593.7434 | D13: ='GPB data'!D40 -> ~ | K13: GPB data
A14: Opening deferred tax balance | C14: ='GPB data'!C42 -> -29314.04205 | D14: ='GPB data'!D42 -> ~ | K14: GPB data
A15: Cost of debt | D15: ='GPB data'!B8 -> 0.0401 | K15: GPB data
A16: Leverage | D16: ='GPB data'!B9 -> 0.42 | K16: GPB data
A17: Remaining asset life for existing assets | D17: =RAB!D98 -> 19.42178136 | E17: =RAB!E98 -> 18.42178136 | F17: =RAB!F98 -> 14.79222532 | G17: =RAB!G98 -> 13.79222532 | H17: =RAB!H98 -> 12.79222532 | I17: =RAB!I98 -> 11.79222532 | J17: =RAB!J98 -> 10.79222532 | K17: RAB
A18: Total depreciation | F18: =RAB!F99 -> 26680.63323 | G18: =RAB!G99 -> 27802.61325 | H18: =RAB!H99 -> 28866.70128 | I18: =RAB!I99 -> 29979.43278 | J18: =RAB!J99 -> 31164.04203 | K18: RAB
A19: Term credit spread differential allowance, full BBAR years | F19: =BBAR!F92 -> 431.098781 | G19: =BBAR!G92 -> 432.5955946 | H19: =BBAR!H92 -> 431.7613842 | I19: =BBAR!I92 -> 430.7672742 | J19: =BBAR!J92 -> 430.4158798 | K19: BBAR
A20: Opening investment value | F20: =BBAR!F94 -> 386934.068 | G20: =BBAR!G94 -> 389369.7087 | H20: =BBAR!H94 -> 389611.1822 | I20: =BBAR!I94 -> 389763.4207 | J20: =BBAR!J94 -> 390591.7461 | K20: BBAR
A21: Calculations
A22: Adjusted RAB & depreciation of assets commissioned
A23: BBAR year ending in calendar year: | D23: =D$4 -> 2021 | E23: =E$4 -> 2022 | F23: 2023 | G23: 2024 | H23: =H$4 -> 2025 | I23: 2026 | J23: 2027
A24: Value of commissioned assets | D24: =D6 -> 18279.35708 | E24: 18254.94431 | F24: 18972.8606 | G24: 19067.5832 | H24: 20001.43564 | I24: 21763.78953 | J24: 21883.41421 | K24: simple ref
A25: ="Assets commissioned in year ending " & C25 -> Assets commissioned in year ending 2021 | C25: =D23 -> 2021
A26: Opening RAB, adjusted depreciation | D26: 0 | E26: =D30 -> 18279.35708 | F26: 17863.91715 | G26: 17387.07834 | H26: =G30 -> 16910.23953 | I26: 16433.40073 | J26: 15956.56192 | L26: n/a | M26: 4.2.1(3)(b)adj
A27: Years of remaining life | D27: =RAB!D30 -> 45 | E27: =RAB!E30 -> 44 | F27: =RAB!F30 -> 37.46322004 | G27: =RAB!G30 -> 36.46322004 | H27: =RAB!H30 -> 35.46322004 | I27: =RAB!I30 -> 34.46322004 | J27: =RAB!J30 -> 33.46322004 | L27: n/a | M27: 4.2.2(3)(b)adj
A28: Adjusted depreciation | D28: =D26/D27 -> 0 | E28: 415.4399337 | F28: 476.838807 | G28: 476.838807 | H28: =H26/H27 -> 476.838807 | I28: 476.838807 | J28: 476.838807 | L28: n/a | M28: 4.2.2(2)(b)adj
A29: ="RAB of asset commissioned in year ending " & C25 -> RAB of asset commissioned in year ending 2021 | D29: =IF(EarlyBaseYear,D$24,0) -> 18279.35708 | E29: =IF($C25=E$23,E$24,0) -> 0 | F29: =IF($C25=F$23,F$24,0) -> 0 | G29: 0 | H29: =IF($C25=H$23,H$24,0) -> 0 | I29: 0 | J29: 0
A30: Closing RAB, adjusted depreciation | D30: =D26-D28+D29 -> 18279.35708 | E30: =E26-E28+E29 -> 17863.91715 | F30: =F26-F28+F29 -> 17387.07834 | G30: 16910.23953 | H30: =H26-H28+H29 -> 16433.40073 | I30: 15956.56192 | J30: 15479.72311 | L30: n/a | M30: 4.2.1(5)(b)
A31: ="Assets commissioned in year ending " & C31 -> Assets commissioned in year ending 2022 | C31: =E23 -> 2022
A32: Opening RAB, adjusted depreciation | D32: 0 | E32: =D36 -> 0 | F32: =E36 -> 18254.94431 | G32: 17778.74234 | H32: =G36 -> 17302.54037 | I32: 16826.3384 | J32: 16350.13642 | L32: =L26 -> n/a | M32: 4.2.1(3)(b)adj
A33: Years of remaining life | D33: =RAB!D38 -> 46 | E33: =RAB!E38 -> 45 | F33: =RAB!F38 -> 38.33445771 | G33: =RAB!G38 -> 37.33445771 | H33: =RAB!H38 -> 36.33445771 | I33: =RAB!I38 -> 35.33445771 | J33: =RAB!J38 -> 34.33445771 | L33: n/a | M33: 4.2.2(3)(b)adj
A34: Adjusted depreciation | D34: =D32/D33 -> 0 | E34: 0 | F34: 476.2019707 | G34: 476.2019707 | H34: =H32/H33 -> 476.2019707 | I34: 476.2019707 | J34: 476.2019707 | L34: n/a | M34: 4.2.2(2)(b)adj
A35: ="RAB of asset commissioned in year ending " & C31 -> RAB of asset commissioned in year ending 2022 | D35: =IF($C31=D$23,D$24,0) -> 0 | E35: =IF($C31=E$23,E$24,0) -> 18254.94431 | F35: =IF($C31=F$23,F$24,0) -> 0 | G35: 0 | H35: =IF($C31=H$23,H$24,0) -> 0 | I35: 0 | J35: 0
A36: Closing RAB, adjusted depreciation | D36: =D32-D34+D35 -> 0 | E36: =E32-E34+E35 -> 18254.94431 | F36: 17778.74234 | G36: 17302.54037 | H36: =H32-H34+H35 -> 16826.3384 | I36: 16350.13642 | J36: 15873.93445 | L36: =L30 -> n/a | M36: =M30 -> 4.2.1(5)(b)
A37: ="Assets commissioned in year ending " & C37 -> Assets commissioned in year ending 2023 | C37: =F23 -> 2023
A38: Opening RAB, adjusted depreciation | D38: 0 | E38: =D42 -> 0 | F38: 0 | G38: 18972.8606 | H38: =G42 -> 18476.2629 | I38: 17979.6652 | J38: 17483.06749 | L38: =L32 -> n/a | M38: 4.2.1(3)(b)adj
A39: Years of remaining life | D39: =RAB!D46 -> 47 | E39: =RAB!E46 -> 46 | F39: =RAB!F46 -> 39.20569539 | G39: =RAB!G46 -> 38.20569539 | H39: =RAB!H46 -> 37.20569539 | I39: =RAB!I46 -> 36.20569539 | J39: =RAB!J46 -> 35.20569539 | L39: n/a | M39: 4.2.2(3)(b)adj
A40: Adjusted depreciation | D40: =D38/D39 -> 0 | E40: 0 | F40: 0 | G40: 496.5977039 | H40: =H38/H39 -> 496.5977039 | I40: 496.5977039 | J40: 496.5977039 | L40: n/a | M40: 4.2.2(2)(b)adj
A41: ="RAB of asset commissioned in year ending " & C37 -> RAB of asset commissioned in year ending 2023 | D41: =IF($C37=D$23,D$24,0) -> 0 | E41: =IF($C37=E$23,E$24,0) -> 0 | F41: =IF($C37=F$23,F$24,0) -> 18972.8606 | G41: 0 | H41: =IF($C37=H$23,H$24,0) -> 0 | I41: 0 | J41: 0
A42: Closing RAB, adjusted depreciation | D42: =D38-D40+D41 -> 0 | E42: 0 | F42: 18972.8606 | G42: 18476.2629 | H42: =H38-H40+H41 -> 17979.6652 | I42: 17483.06749 | J42: 16986.46979 | L42: =L36 -> n/a | M42: =M36 -> 4.2.1(5)(b)
A43: ="Assets commissioned in year ending " & C43 -> Assets commissioned in year ending 2024 | C43: =G23 -> 2024
A44: Opening RAB, adjusted depreciation | D44: 0 | E44: =D48 -> 0 | F44: 0 | G44: 0 | H44: =G48 -> 19067.5832 | I44: 18566.81852 | J44: 18066.05384 | L44: =L38 -> n/a | M44: 4.2.1(3)(b)adj
A45: Years of remaining life | D45: =RAB!D54 -> 48 | E45: =RAB!E54 -> 47 | F45: =RAB!F54 -> 40.07693306 | G45: =RAB!G54 -> 39.07693306 | H45: =RAB!H54 -> 38.07693306 | I45: =RAB!I54 -> 37.07693306 | J45: =RAB!J54 -> 36.07693306 | L45: n/a | M45: 4.2.2(3)(b)adj
A46: Adjusted depreciation | D46: =D44/D45 -> 0 | E46: 0 | F46: 0 | G46: 0 | H46: =H44/H45 -> 500.7646801 | I46: 500.7646801 | J46: 500.7646801 | L46: n/a | M46: 4.2.2(2)(b)adj
A47: ="RAB of asset commissioned in year ending " & C43 -> RAB of asset commissioned in year ending 2024 | D47: =IF($C43=D$23,D$24,0) -> 0 | E47: =IF($C43=E$23,E$24,0) -> 0 | F47: =IF($C43=F$23,F$24,0) -> 0 | G47: 19067.5832 | H47: =IF($C43=H$23,H$24,0) -> 0 | I47: 0 | J47: 0
A48: Closing RAB, adjusted depreciation | D48: =D44-D46+D47 -> 0 | E48: 0 | F48: 0 | G48: 19067.5832 | H48: =H44-H46+H47 -> 18566.81852 | I48: 18066.05384 | J48: 17565.28916 | L48: =L42 -> n/a | M48: =M42 -> 4.2.1(5)(b)
A49: ="Assets commissioned in year ending " & C49 -> Assets commissioned in year ending 2025 | C49: =H23 -> 2025
A50: Opening RAB, adjusted depreciation | D50: 0 | E50: =D54 -> 0 | F50: 0 | G50: 0 | H50: =G54 -> 0 | I50: 20001.43564 | J50: 19474.36318 | L50: =L44 -> n/a | M50: 4.2.1(3)(b)adj
A51: Years of remaining life | D51: =RAB!D62 -> 49 | E51: =RAB!E62 -> 48 | F51: =RAB!F62 -> 40.94817074 | G51: =RAB!G62 -> 39.94817074 | H51: =RAB!H62 -> 38.94817074 | I51: =RAB!I62 -> 37.94817074 | J51: =RAB!J62 -> 36.94817074 | L51: n/a | M51: 4.2.2(3)(b)adj
A52: Adjusted depreciation | D52: =D50/D51 -> 0 | E52: 0 | F52: 0 | G52: 0 | H52: =H50/H51 -> 0 | I52: 527.0724583 | J52: 527.0724583 | L52: n/a | M52: 4.2.2(2)(b)adj
A53: ="RAB of asset commissioned in year ending " & C49 -> RAB of asset commissioned in year ending 2025 | D53: =IF($C49=D$23,D$24,0) -> 0 | E53: =IF($C49=E$23,E$24,0) -> 0 | F53: =IF($C49=F$23,F$24,0) -> 0 | G53: 0 | H53: =IF($C49=H$23,H$24,0) -> 20001.43564 | I53: 0 | J53: 0
A54: Closing RAB, adjusted depreciation | D54: =D50-D52+D53 -> 0 | E54: 0 | F54: 0 | G54: 0 | H54: =H50-H52+H53 -> 20001.43564 | I54: 19474.36318 | J54: 18947.29072 | L54: =L48 -> n/a | M54: =M48 -> 4.2.1(5)(b)
A55: ="Assets commissioned in year ending " & C55 -> Assets commissioned in year ending 2026 | C55: =I23 -> 2026
A56: Opening RAB, adjusted depreciation | D56: 0 | E56: =D60 -> 0 | F56: 0 | G56: 0 | H56: =G60 -> 0 | I56: 0 | J56: 21763.78953 | L56: =L50 -> n/a | M56: 4.2.1(3)(b)adj
A57: Years of remaining life | D57: =RAB!D70 -> 50 | E57: =RAB!E70 -> 49 | F57: =RAB!F70 -> 41.81940841 | G57: =RAB!G70 -> 40.81940841 | H57: =RAB!H70 -> 39.81940841 | I57: =RAB!I70 -> 38.81940841 | J57: =RAB!J70 -> 37.81940841 | L57: n/a | M57: 4.2.2(3)(b)adj
A58: Adjusted depreciation | D58: =D56/D57 -> 0 | E58: 0 | F58: 0 | G58: 0 | H58: =H56/H57 -> 0 | I58: 0 | J58: 575.4661546 | L58: n/a | M58: 4.2.2(2)(b)adj
A59: ="RAB of asset commissioned in year ending " & C55 -> RAB of asset commissioned in year ending 2026 | D59: =IF($C55=D$23,D$24,0) -> 0 | E59: =IF($C55=E$23,E$24,0) -> 0 | F59: =IF($C55=F$23,F$24,0) -> 0 | G59: 0 | H59: =IF($C55=H$23,H$24,0) -> 0 | I59: 21763.78953 | J59: 0
A60: Closing RAB, adjusted depreciation | D60: =D56-D58+D59 -> 0 | E60: 0 | F60: 0 | G60: 0 | H60: =H56-H58+H59 -> 0 | I60: 21763.78953 | J60: 21188.32338 | L60: =L54 -> n/a | M60: =M54 -> 4.2.1(5)(b)
A61: ="Assets commissioned in year ending " & C61 -> Assets commissioned in year ending 2027 | C61: =J23 -> 2027
A62: Opening RAB, adjusted depreciation | D62: 0 | E62: =D66 -> 0 | F62: 0 | G62: 0 | H62: =G66 -> 0 | I62: 0 | J62: 0 | L62: =L56 -> n/a | M62: 4.2.1(3)(b)adj
A63: Years of remaining life | D63: =RAB!D78 -> 51 | E63: =RAB!E78 -> 50 | F63: =RAB!F78 -> 42.69064609 | G63: =RAB!G78 -> 41.69064609 | H63: =RAB!H78 -> 40.69064609 | I63: =RAB!I78 -> 39.69064609 | J63: =RAB!J78 -> 38.69064609 | L63: n/a | M63: 4.2.2(3)(b)adj
A64: Adjusted depreciation | D64: =D62/D63 -> 0 | E64: 0 | F64: 0 | G64: 0 | H64: =H62/H63 -> 0 | I64: 0 | J64: 0 | L64: n/a | M64: 4.2.2(2)(b)adj
A65: ="RAB of asset commissioned in year ending " & C61 -> RAB of asset commissioned in year ending 2027 | D65: =IF($C61=D$23,D$24,0) -> 0 | E65: =IF($C61=E$23,E$24,0) -> 0 | F65: =IF($C61=F$23,F$24,0) -> 0 | G65: 0 | H65: =IF($C61=H$23,H$24,0) -> 0 | I65: 0 | J65: 21883.41421
A66: Closing RAB, adjusted depreciation | D66: =D62-D64+D65 -> 0 | E66: 0 | F66: 0 | G66: 0 | H66: =H62-H64+H65 -> 0 | I66: 0 | J66: 21883.41421 | L66: =L60 -> n/a | M66: =M60 -> 4.2.1(5)(b)
A67: Total assets commissioned
A68: Total adjusted depreciation of commissioned assets | D68: =D28+D34+D40+D46+D52+D58+D64 -> 0 | E68: =E28+E34+E40+E46+E52+E58+E64 -> 415.4399337 | F68: 953.0407777 | G68: 1449.638482 | H68: =H28+H34+H40+H46+H52+H58+H64 -> 1950.403162 | I68: 2477.47562 | J68: 3052.941775 | K68: spec | L68: n/a
A69: Adjusted depreciation of existing assets
A70: BBAR year ending in calendar year: | C70: =C$4 -> 2020 | D70: =D$4 -> 2021 | E70: =E$4 -> 2022 | F70: 2023 | G70: 2024 | H70: =H$4 -> 2025 | I70: 2026 | J70: 2027
A71: Opening RAB value of existing assets, adjusted depreciation | C71: =IF(EarlyBaseYear,C10,"~") -> 345486.4593 | D71: =IF(EarlyBaseYear,C75,D10) -> 329429.7482 | E71: =D75 -> 330352.9347 | F71: =E75 -> 312010.1274 | G71: 290497.7783 | H71: =G75 -> 269007.4551 | I71: 247542.0235 | J71: 226104.8746 | L71: n/a | M71: 4.2.1(2)(b)
A72: Disposed assets | D72: =D9 -> 394.2996835 | E72: 410.0716708 | F72: 419.5033192 | G72: 427.8933856 | H72: =H9 -> 436.4512533 | I72: 445.1802784 | J72: 454.083884
A73: Adjusted depreciation of existing assets | C73: =IF(EarlyBaseYear,C11,"~") -> 16056.71112 | D73: =IF(EarlyBaseYear,D71/D17,D11) -> 16961.8709 | E73: =E71/E17 -> 17932.73561 | F73: 21092.84578 | G73: 21062.42985 | H73: 21028.98037 | I73: 20991.96859 | J73: 20950.71849 | L73: n/a | M73: 4.2.2(2)(a)(ii)
A74: Base year commissioned assets | D74: =D6 -> 18279.35708
A75: Closing RAB value of existing assets, adjusted depreciation | C75: =IF(EarlyBaseYear,C71-C72-C73+C74,"~") -> 329429.7482 | D75: =D71-D72-D73+D74 -> 330352.9347 | E75: =E71-E72-E73 -> 312010.1274 | F75: 290497.7783 | G75: 269007.4551 | H75: 247542.0235 | I75: 226104.8746 | J75: 204700.0722 | L75: n/a | M75: 4.2.1(3)(b)adj
A76: Regulatory tax asset value
A77: BBAR year ending in calendar year: | C77: =C$4 -> 2020 | D77: =D$4 -> 2021 | E77: =E$4 -> 2022 | F77: 2023 | G77: 2024 | H77: =H$4 -> 2025 | I77: 2026 | J77: 2027
A78: Average DV rate | C78: =IF(EarlyBaseYear,C12/C13,"~") -> 0.09002230693 | D78: =IF(EarlyBaseYear,C78,D12/D13) -> 0.09002230693 | L78: 4.3.3(3)(b) | M78: 4.3.5(3)(b)
A79: Opening regulatory tax asset value | C79: =IF(EarlyBaseYear,C13,"~") -> 175593.7434 | D79: =IF(EarlyBaseYear,C82,D13) -> 175553.7469 | E79: =D82 -> 178029.3507 | F79: =E82 -> 180257.6822 | G79: 183003.3304 | H79: =G82 -> 185596.5316 | I79: 188890.1393 | J79: 193649.6027 | L79: 4.3.3(a)(ii) | M79: 4.3.5(3)(a)
A80: Tax depreciation | C80: =IF(EarlyBaseYear,C12,"~") -> 15807.35387 | D80: =D79*$D78 -> 15803.75329 | E80: =E79*$D78 -> 16026.61285 | F80: 16227.21239 | G80: 16474.38198 | H80: =H79*$D78 -> 16707.82793 | I80: 17004.3261 | J80: 17432.78398 | L80: 4.3.3(2)(b) | M80: 4.3.5(2)(b)
A81: Value of commissioned assets | C81: =IF(EarlyBaseYear,C6,"~") -> 15767.35737 | D81: =D6 -> 18279.35708 | E81: 18254.94431 | F81: 18972.8606 | G81: 19067.5832 | H81: 20001.43564 | I81: 21763.78953 | J81: 21883.41421 | K81: simple ref
A82: Closing regulatory tax asset value | C82: =IF(EarlyBaseYear,C79-C80+C81,"~") -> 175553.7469 | D82: =D79-D80+D81 -> 178029.3507 | E82: =E79-E80+E81 -> 180257.6822 | F82: 183003.3304 | G82: 185596.5316 | H82: =H79-H80+H81 -> 188890.1393 | I82: 193649.6027 | J82: 198100.233 | L82: 4.3.3(3)(c) | M82: 4.3.5(3)(c)(i)
A83: Depreciation temporary differences
A84: BBAR year ending in calendar year: | C84: =C$4 -> 2020 | D84: =D$4 -> 2021 | E84: =E$4 -> 2022 | F84: 2023 | G84: 2024 | H84: =H$4 -> 2025 | I84: 2026 | J84: 2027
A85: Total adjusted depreciation of assets | C85: =IF(EarlyBaseYear,C68+C73,"~") -> 16056.71112 | D85: =D68+D73 -> 16961.8709 | E85: 18348.17555 | F85: 22045.88656 | G85: 22512.06833 | H85: 22979.38353 | I85: 23469.4442 | J85: 24003.66027
A86: Tax depreciation | C86: =C80 -> 15807.35387 | D86: 15803.75329 | E86: 16026.61285 | F86: 16227.21239 | G86: 16474.38198 | H86: 16707.82793 | I86: 17004.3261 | J86: 17432.78398 | K86: simple ref
A87: Depreciation temporary differences, deferred tax approach | C87: =IF(EarlyBaseYear,C85-C86,"~") -> 249.3572567 | D87: =D85-D86 -> 1158.117616 | E87: 2321.562694 | F87: 5818.674167 | G87: 6037.686358 | H87: =H85-H86 -> 6271.555593 | I87: 6465.118108 | J87: 6570.876293 | L87: n/a | M87: 4.3.5(1)
A88: Deductions for regulatory tax purposes
A89: Amortisation of initial differences in asset values | C89: =IF(EarlyBaseYear,B8,"~") -> 2292.498839 | D89: =$B$8 -> 2292.498839 | E89: 2292.498839 | F89: 2292.498839 | G89: 2292.498839 | H89: =$B$8 -> 2292.498839 | I89: 2292.498839 | J89: 2292.498839 | K89: simple ref | L89: n/a
A90: Notional deductible interest | F90: =(F20*$D$16*$D$15+F19)/(1+$D$15)^0.5 -> 6812.59243 | G90: 6854.282632 | H90: 6857.452388 | I90: 6858.991719 | J90: 6872.326251 | L90: 4.3.4(1) | M90: 4.3.3(2)
A91: Amortisation of revaluations | F91: =F18-F85 -> 4634.746672 | G91: 5290.544912 | H91: 5887.317757 | I91: 6509.988575 | J91: 7160.381762 | L91: n/a | M91: 4.3.3(5)
A92: Regulatory tax adjustments | F92: =F89+F91-F90 -> 114.6530819 | G92: 728.7611191 | H92: =H89+H91-H90 -> 1322.364209 | I92: 1943.495695 | J92: 2580.55435 | L92: n/a | M92: 4.3.3(1)
A93: Deferred tax asset value
A94: BBAR year ending in calendar year: | C94: =C$4 -> 2020 | D94: =D$4 -> 2021 | E94: =E$4 -> 2022 | F94: 2023 | G94: 2024 | H94: =H$4 -> 2025 | I94: 2026 | J94: 2027
A95: Opening deferred tax | C95: =IF(EarlyBaseYear,C14,"~") -> -29314.04205 | D95: =IF(EarlyBaseYear,C98,D14) -> -29886.1217 | E95: =D98 -> -30203.74844 | F95: =E98 -> -30195.61056 | G95: -29208.28147 | H95: =G98 -> -28159.62896 | I95: -27045.49307 | J95: -25877.15968 | K95: simple ref | L95: n/a | M95: 4.3.4(1)(b)
A96: Depreciation temporary differences, deferred tax approach | C96: =C87 -> 249.3572567 | D96: 1158.117616 | E96: 2321.562694 | F96: 5818.674167 | G96: 6037.686358 | H96: 6271.555593 | I96: 6465.118108 | J96: 6570.876293 | K96: simple ref
A97: Amortisation of initial differences in asset values | C97: =C89 -> 2292.498839 | D97: 2292.498839 | E97: 2292.498839 | F97: 2292.498839 | G97: 2292.498839 | H97: 2292.498839 | I97: 2292.498839 | J97: 2292.498839 | K97: simple ref
A98: Closing deferred tax | C98: =IF(EarlyBaseYear,C95+(C96-C97)*C5,"~") -> -29886.1217 | D98: =D95+(D96-D97)*D5 -> -30203.74844 | E98: -30195.61056 | F98: -29208.28147 | G98: -28159.62896 | H98: -27045.49307 | I98: -25877.15968 | J98: -24679.21399 | L98: n/a | M98: 4.3.4(2)
A99: Outputs
A100: BBAR year ending in calendar year: | C100: =C$4 -> 2020 | D100: =D$4 -> 2021 | E100: =E$4 -> 2022 | F100: 2023 | G100: 2024 | H100: =H$4 -> 2025 | I100: 2026 | J100: 2027
A101: Opening deferred tax | E101: =E95 -> -30203.74844 | F101: -30195.61056 | G101: -29208.28147 | H101: =H95 -> -28159.62896 | I101: -27045.49307 | J101: -25877.15968 | K101: simple ref
A102: Closing deferred tax | F102: =F98 -> -29208.28147 | G102: -28159.62896 | H102: =H98 -> -27045.49307 | I102: -25877.15968 | J102: -24679.21399 | K102: simple ref
A103: Regulatory tax adjustments | F103: =F92 -> 114.6530819 | G103: 728.7611191 | H103: 1322.364209 | I103: 1943.495695 | J103: 2580.55435 | K103: simple ref
A104: Tax depreciation | F104: =F80 -> 16227.21239 | G104: 16474.38198 | H104: 16707.82793 | I104: 17004.3261 | J104: 17432.78398 | K104: simple ref
A105: Notional deductible interest | F105: =F90 -> 6812.59243 | G105: 6854.282632 | H105: =H90 -> 6857.452388 | I105: 6858.991719 | J105: 6872.326251 | K105: simple ref

Sheet BBAR
A1: Building blocks allowable revenue | B1: Values, not time series | C1: Early base year | D1: Std base year | E1: Gap year | F1: 1st BBAR year | G1: 2nd BBAR year | H1: 3rd BBAR year | I1: 4th BBAR year | J1: 5th BBAR year | L1: Spec ref | M1: IM ref
A2: Calculation of BBAR present value, opening investment value, and TCSD allowance.
A3: Inputs | J3: =GPB_name -> Powerco
A4: Tax payable (payable) or deferred tax (deferred) | B4: ='GPB data'!B29 -> deferred
A5: Vanilla WACC (67th percentile) | B5: =WACC -> 0.0607
A6: Term credit spread differential allowance | C6: ='GPB data'!C41 -> 396.2463004 | D6: ='GPB data'!D41 -> ~ | L6: GPB data
A7: BBAR year ending in calendar year: | D7: ='GPB data'!D18 -> 2021 | E7: ='GPB data'!E18 -> 2022 | F7: ='GPB data'!F18 -> 2023 | G7: ='GPB data'!G18 -> 2024 | H7: ='GPB data'!H18 -> 2025 | I7: ='GPB data'!I18 -> 2026 | J7: ='GPB data'!J18 -> 2027 | L7: GPB data
A8: Corporate tax rate | F8: ='GPB data'!F23 -> 0.28 | G8: ='GPB data'!G23 -> 0.28 | H8: ='GPB data'!H23 -> 0.28 | I8: ='GPB data'!I23 -> 0.28 | J8: ='GPB data'!J23 -> 0.28 | L8: GPB data
A9: Other regulated income | F9: ='GPB data'!F97 -> 333.1946789 | G9: ='GPB data'!G97 -> 339.8585725 | H9: ='GPB data'!H97 -> 346.655744 | I9: ='GPB data'!I97 -> 353.5888588 | J9: ='GPB data'!J97 -> 360.660636 | L9: GPB data
A11: Value of commissioned assets | F11: ='GPB data'!F78 -> 18972.8606 | G11: ='GPB data'!G78 -> 19067.5832 | H11: ='GPB data'!H78 -> 20001.43564 | I11: ='GPB data'!I78 -> 21763.78953 | J11: ='GPB data'!J78 -> 21883.41421 | L11: GPB data
A12: Operating expenditure | F12: ='GPB data'!F55 -> 19916.2428 | G12: ='GPB data'!G55 -> 20406.7001 | H12: ='GPB data'!H55 -> 21078.93564 | I12: ='GPB data'!I55 -> 21672.41728 | J12: ='GPB data'!J55 -> 22146.76068 | L12: GPB data
A13: Day prior to start of the regulatory period | B13: ='GPB data'!B14 -> 2022-09-30 | L13: GPB data
A14: TFmid | F14: =Timing!F30 -> 1.029819773 | G14: =Timing!G30 -> 1.029902908 | H14: =Timing!H30 -> 1.029819773 | I14: =Timing!I30 -> 1.029819773 | J14: =Timing!J30 -> 1 | L14: TIMING
A15: TFtax | F15: =Timing!F31 -> 1.029819773 | G15: =Timing!G31 -> 1.029902908 | H15: =Timing!H31 -> 1.029819773 | I15: =Timing!I31 -> 1.029819773 | J15: =Timing!J31 -> 1 | L15: TIMING
A16: TFrev | F16: =Timing!F32 -> 1.024182288 | G16: =Timing!G32 -> 1.02428033 | H16: =Timing!H32 -> 1.024182288 | I16: =Timing!I32 -> 1.024182288 | J16: =Timing!J32 -> 0.9945257556 | L16: TIMING
A17: Aggregate opening RAB value | C17: =RAB!C100 -> 383406.5398 | D17: =RAB!D100 -> 387505.4907 | E17: =RAB!E100 -> 404517.7864 | F17: =RAB!F100 -> 417129.6786 | G17: =RAB!G100 -> 418577.9902 | H17: =RAB!H100 -> 417770.8111 | I17: =RAB!I100 -> 416808.9137 | J17: =RAB!J100 -> 416468.9058 | L17: RAB
A18: Closing RAB, 4th BBAR year | B18: =RAB!B102 -> 415048.4592
A19: Total revaluation | F19: =RAB!F101 -> 9575.587599 | G19: =RAB!G101 -> 8355.744334 | H19: =RAB!H101 -> 8339.819527 | I19: =RAB!I101 -> 8320.815549 | J19: =RAB!J101 -> 8314.26509 | L19: RAB
A20: Total depreciation | F20: =RAB!F99 -> 26680.63323 | G20: =RAB!G99 -> 27802.61325 | H20: =RAB!H99 -> 28866.70128 | I20: =RAB!I99 -> 29979.43278 | J20: =RAB!J99 -> 31164.04203 | L20: RAB
A21: Opening deferred tax | E21: =Tax!E101 -> -30203.74844 | F21: =Tax!F101 -> -30195.61056 | G21: =Tax!G101 -> -29208.28147 | H21: =Tax!H101 -> -28159.62896 | I21: =Tax!I101 -> -27045.49307 | J21: =Tax!J101 -> -25877.15968 | L21: TAX
A22: Closing deferred tax | F22: =Tax!F102 -> -29208.28147 | G22: =Tax!G102 -> -28159.62896 | H22: =Tax!H102 -> -27045.49307 | I22: =Tax!I102 -> -25877.15968 | J22: =Tax!J102 -> -24679.21399 | L22: TAX
A23: Regulatory tax adjustments | F23: =Tax!F103 -> 114.6530819 | G23: =Tax!G103 -> 728.7611191 | H23: =Tax!H103 -> 1322.364209 | I23: =Tax!I103 -> 1943.495695 | J23: =Tax!J103 -> 2580.55435 | L23: TAX
A24: Tax depreciation | F24: =Tax!F104 -> 16227.21239 | G24: =Tax!G104 -> 16474.38198 | H24: =Tax!H104 -> 16707.82793 | I24: =Tax!I104 -> 17004.3261 | J24: =Tax!J104 -> 17432.78398 | L24: TAX
A25: Notional deductible interest | F25: =Tax!F105 -> 6812.59243 | G25: =Tax!G105 -> 6854.282632 | H25: =Tax!H105 -> 6857.452388 | I25: =Tax!I105 -> 6858.991719 | J25: =Tax!J105 -> 6872.326251 | L25: TAX
A26: Proportion of BBAR year in the regulatory period | F26: =Timing!F29 -> 1 | G26: =Timing!G29 -> 1 | H26: =Timing!H29 -> 1 | I26: =Timing!I29 -> 1 | J26: =Timing!J29 -> 0 | L26: =Notes!A6 -> 1
A27: Number of BBAR days in the BBAR period | F27: =Timing!F28 -> 365 | G27: =Timing!G28 -> 366 | H27: =Timing!H28 -> 365 | I27: =Timing!I28 -> 365 | J27: =Timing!J28 -> 0 | L27: TIMING
A28: Calculations
A29: BBAR year ending in calendar year: | D29: =D$7 -> 2021 | E29: =E$7 -> 2022 | F29: 2023 | G29: 2024 | H29: =H$7 -> 2025 | I29: 2026 | J29: 2027 | L29: simple ref
A30: Cumulative number of days from start of regulatory period to end of BBAR period | E30: 0 | F30: =E30+F27 -> 365 | G30: 731 | H30: 1096 | I30: 1461 | J30: 1461 | L30: =Notes!A7 -> 2
A31: PV factor from end of each BBAR period | F31: =(1+WACC)^(-1*F30/365) -> 0.94277364 | G31: 0.8886786481 | H31: =(1+WACC)^(-1*H30/365) -> 0.8378228039 | I31: 0.7898772545 | J31: 0.7898772545 | L31: =Notes!A8 -> 3
A32: Term credit spread differential allowance
A34: Asset base scaling factor | D34: =IF(EarlyBaseYear,D17/$C$17,D17/$D$17) -> 1.010690874 | E34: 1.055062302 | F34: 1.087956608 | G34: 1.091734091 | H34: 1.089628809 | I34: 1.08711999 | J34: 1.086233182 | L34: =Notes!A9 -> 4
A35: Term credit spread differential allowance, full BBAR years | C35: =C6 -> 396.2463004 | D35: =IF(EarlyBaseYear,$C35*D34,D6) -> 400.4825195 | E35: =IF(EarlyBaseYear,$C35,$D35)*E34 -> 418.0645338 | F35: 431.098781 | G35: 432.5955946 | H35: 431.7613842 | I35: 430.7672742 | J35: 430.4158798 | L35: =Notes!A10 -> 5
A36: Return on capital
A37: BBAR year ending in calendar year: | D37: =D$7 -> 2021 | E37: =E$7 -> 2022 | F37: 2023 | G37: 2024 | H37: =H$7 -> 2025 | I37: 2026 | J37: 2027 | L37: simple ref
A38: Opening investment value (full BBAR year values) | E38: =E17+IF($B$4="deferred",E21,0) -> 374314.038 | F38: =F17+IF($B$4="deferred",F21,0) -> 386934.068 | G38: 389369.7087 | H38: 389611.1822 | I38: 389763.4207 | J38: 390591.7461 | L38: =Notes!A11 -> 6
A39: Opening investment value, start of regulatory period | B39: =G38-F26*(G38-F38) -> 386934.068 | L39: =Notes!A12 -> 7
A40: Closing investment value, end of 5th BBAR year | B40: =B18+IF($B$4="deferred",J22,0) -> 390369.2452 | L40: =Notes!A13 -> 7
A41: Closing investment value, end of regulatory period | B41: =J38+J26*(B40-J38) -> 390591.7461 | L41: =Notes!A14 -> 8
A42: Opening investment value for each BBAR period | F42: =B39 -> 386934.068 | G42: =G38 -> 389369.7087 | H42: =H38 -> 389611.1822 | I42: =I38 -> 389763.4207 | J42: =J38 -> 390591.7461 | L42: =Notes!A15 -> 9
A43: Value of commissioned assets, after accounting for part year effects | F43: =F11*F26 -> 18972.8606 | G43: 19067.5832 | H43: 20001.43564 | I43: 21763.78953 | J43: 0 | L43: =Notes!A16 -> 10
A44: Term credit spread differential allowance, after accounting for part year effects | F44: =F35*F26 -> 431.098781 | G44: 432.5955946 | H44: 431.7613842 | I44: 430.7672742 | J44: 0 | L44: =Notes!A16 -> 10
A45: Total revaluation, after accounting for part year effects | F45: =F19*F26 -> 9575.587599 | G45: 8355.744334 | H45: 8339.819527 | I45: 8320.815549 | J45: 0 | L45: =Notes!A16 -> 10
A46: WACC adjusted for full and part years | F46: =(1+WACC)^(F27/365)-1 -> 0.0607 | G46: 0.06087126331 | H46: 0.0607 | I46: 0.0607 | J46: 0 | L46: =Notes!A$18 -> 12
A47: Return on capital, after accounting for part year effects | F47: =F42*F46+F43*(F$14-1)+F44-F45 -> 14908.1755 | G47: 16348.45351 | H47: =H42*H46+H43*(H$14-1)+H44-H45 -> 16337.77888 | I47: 16417.58262 | J47: 0 | L47: =Notes!A19 -> 13
A48: Operating expenditure
A49: BBAR year ending in calendar year: | F49: =F$7 -> 2023 | G49: 2024 | H49: =H$7 -> 2025 | I49: 2026 | J49: 2027 | L49: simple ref
A50: Operating expenditure, after accounting for part year effects | F50: =F12*F26 -> 19916.2428 | G50: 20406.7001 | H50: 21078.93564 | I50: 21672.41728 | J50: 0 | L50: =Notes!$A$16 -> 10
A51: Building block allowable revenue before tax, after accounting for part year effects, deferred tax approach | G51: The next 12 lines are greyed out when a supplier to which a deferred tax approach does not apply.
A52: BBAR year ending in calendar year: | F52: =F$7 -> 2023 | G52: 2024 | H52: =H$7 -> 2025 | I52: 2026 | J52: 2027 | L52: simple ref
A53: Increase in deferred tax asset, ΔDT | F53: =F22-F21 -> 987.3290918 | G53: 1048.652505 | H53: 1114.135891 | I53: 1168.333395 | J53: 1197.945687 | L53: 11
A54: Increase in deferred tax asset, ΔDT, after accounting for part year effects | F54: =F53*F26 -> 987.3290918 | G54: 1048.652505 | H54: 1114.135891 | I54: 1168.333395 | J54: 0 | L54: 10
A55: Other regulated income, after accounting for part year effects | F55: =F9*F26 -> 333.1946789 | G55: 339.8585725 | H55: 346.655744 | I55: 353.5888588 | J55: 0 | L55: =Notes!A$16 -> 10
A56: Depreciation, after accounting for part year effects | F56: =F20*F26 -> 26680.63323 | G56: 27802.61325 | H56: 28866.70128 | I56: 29979.43278 | J56: 0 | L56: =Notes!A$16 -> 10
A57: Regulatory tax adjustments, after accounting for part year effects | F57: =F23*F26 -> 114.6530819 | G57: 728.7611191 | H57: 1322.364209 | I57: 1943.495695 | J57: 0 | L57: =Notes!A$16 -> 10
A58: BBAR before tax in revenue date terms, calculation not referencing tax | F58: =(F47+F56*(1-F8*F15)+F50*(F14-F8*F15)-F55*(F14-F8*F15)+F54*(F15-1)+F57*F8*F15)/(F16-F8*F15) -> 65882.1041 | G58: =(G47+G56*(1-G8*G15)+G50*(G14-G8*G15)-G55*(G14-G8*G15)+G54*(G15-1)+G57*G8*G15)/(G16-G8*G15) -> 69649.00803 | H58: 71575.60601 | I58: 73596.86292 | J58: 0 | L58: =Notes!A$20 -> 14
A59: Regulatory tax allowance before considering possibility of tax losses | F59: =(F58+F55-F50-F56+F57)*F8 -> 5525.261234 | G59: 6302.328026 | H59: 6523.716931 | I59: 6787.787275 | J59: 0 | L59: =Notes!A21 -> 15
A60: Regulatory tax allowance | F60: =IF(AND(F59<0,$B$4="deferred"),#N/A,F59) -> 5525.261234 | G60: 6302.328026 | H60: =IF(AND(H59<0,$B$4="deferred"),#N/A,H59) -> 6523.716931 | I60: 6787.787275 | J60: 0 | L60: =Notes!A22 -> 16
A61: BBAR before tax in BBAR period-end terms, direct simple calculation | F61: =F47+F56+F50*F14+(F60+F54)*F$15-F55*F$14-F54 -> 67475.28409 | G61: =G47+G56+G50*G14+(G60+G54)*G$15-G55*G$14-G54 -> 71340.10892 | H61: 73306.4679 | I61: 75376.60343 | J61: 0 | L61: =Notes!A23 -> 17
A62: BBAR before tax in revenue date terms | F62: =F61/F$16 -> 65882.1041 | G62: 69649.00803 | H62: =H61/H$16 -> 71575.60601 | I62: 73596.86292 | J62: 0 | L62: =Notes!A24 -> 18
A63: Difference between the two BBAR calculations (should = 0) | F63: =F58-F62 -> 0 | G63: 0 | H63: =H58-H62 -> 0 | I63: 0 | J63: 0 | L63: =Notes!A25 -> 19
A64: Building block allowable revenue before tax, after accounting for part year effects, tax payable approach | G64: The next 12 lines are greyed out when a supplier to which a tax payable approach does not apply.
A65: BBAR year ending in calendar year: | F65: =F$7 -> 2023 | G65: 2024 | H65: =H$7 -> 2025 | I65: 2026 | J65: 2027 | L65: simple ref
A66: Other regulated income, after accounting for part year effects | F66: =F9*F26 -> 333.1946789 | G66: 339.8585725 | H66: 346.655744 | I66: 353.5888588 | J66: 0 | L66: =Notes!$A$16 -> 10
A67: Depreciation, after accounting for part year effects | F67: =F20*F26 -> 26680.63323 | G67: 27802.61325 | H67: 28866.70128 | I67: 29979.43278 | J67: 0 | L67: =Notes!$A$16 -> 10
A68: Tax depreciation | F68: =F24*F26 -> 16227.21239 | G68: 16474.38198 | H68: 16707.82793 | I68: 17004.3261 | J68: 0 | L68: =Notes!$A$16 -> 10
A69: Notional deductible interest | F69: =F25*F26 -> 6812.59243 | G69: 6854.282632 | H69: 6857.452388 | I69: 6858.991719 | J69: 0 | L69: =Notes!$A$16 -> 10
A70: Depreciation temporary differences, tax payable approach | F70: =F67-F68 -> 10453.42084 | G70: 11328.23127 | H70: =H67-H68 -> 12158.87335 | I70: 12975.10668 | J70: 0 | L70: =Notes!A26 -> 20 | M70: 4.3.3(1)
A71: BBAR before tax in revenue date terms, calculation not referencing tax | F71: =(F47+F67*(1-F8*F15)+F50*(F14-F8*F15)-F66*(F14-F8*F15)+(F70-F69)*F8*F15)/(F16-F8*F15) -> 67223.88876 | G71: =(G47+G67*(1-G8*G15)+G50*(G14-G8*G15)-G66*(G14-G8*G15)+(G70-G69)*G8*G15)/(G16-G8*G15) -> 71073.98669 | H71: 73089.72167 | I71: 75184.63323 | J71: 0 | L71: =Notes!A28 -> 22
A72: Regulatory tax allowance before considering possibility of tax losses | F72: =(F71+F66-F50-F67+F70-F69)*F8 -> 6888.290028 | G72: 7749.974556 | H72: 8061.805207 | I72: 8400.696357 | J72: 0 | L72: =Notes!A29 -> 23 | M72: 4.3.1
A73: Regulatory tax allowance | F73: =IF(AND(F72<0,$B$4="payable"),#N/A,F72) -> 6888.290028 | G73: 7749.974556 | H73: 8061.805207 | I73: 8400.696357 | J73: 0 | L73: =Notes!A22 -> 16
A74: BBAR before tax in BBAR period-end terms, direct simple calculation | F74: =F47+F67+F50*F14+(F73)*F$15-F66*F$14 -> 68849.51617 | G74: =G47+G67+G50*G14+(G73)*G$15-G66*G$14 -> 72799.68653 | H74: 74857.19834 | I74: 77002.76965 | J74: 0 | L74: =Notes!A28 -> 22
A75: BBAR before tax in revenue date terms | F75: =F74/F$16 -> 67223.88876 | G75: 71073.98669 | H75: =H74/H$16 -> 73089.72167 | I75: 75184.63323 | J75: 0 | L75: =Notes!A24 -> 18
A76: Difference between the two BBAR calculations (should = 0) | F76: =F71-F75 -> 0 | G76: 0 | H76: =H71-H75 -> 0 | I76: 0 | J76: 0 | L76: =Notes!A25 -> 19
A77: Parameters dependent on whether a deferred tax or tax payable approach applied
A78: BBAR before tax in BBAR period-end terms | F78: =IF($B$4="deferred",F61,F74) -> 67475.28409 | G78: 71340.10892 | H78: =IF($B$4="deferred",H61,H74) -> 73306.4679 | I78: =IF($B$4="deferred",I61,I74) -> 75376.60343 | J78: 0 | L78: =Notes!A30 -> 24
A79: BBAR before tax in revenue date terms | F79: =IF($B$4="deferred",F58,F71) -> 65882.1041 | G79: 69649.00803 | H79: =IF($B$4="deferred",H58,H71) -> 71575.60601 | I79: 73596.86292 | J79: 0 | L79: =Notes!A$30 -> 24
A80: Tax allowance in period-end terms | F80: =IF($B$4="deferred",F60,F73)*F15 -> 5690.023268 | G80: 6490.785962 | H80: 6718.252687 | I80: 6990.197549 | J80: 0 | L80: =Notes!A$31 -> 25
A81: Tax payable | F81: =IF($B$4="deferred",F54+F60,F73) -> 6512.590326 | G81: 7350.980531 | H81: =IF($B$4="deferred",H54+H60,H73) -> 7637.852822 | I81: 7956.12067 | J81: 0 | L81: =Notes!A$32 -> 26
A82: Present value of the building block allowable revenue before tax
A83: BBAR year ending in calendar year: | B83: Value | F83: =F$7 -> 2023 | G83: 2024 | H83: =H$7 -> 2025 | I83: 2026 | J83: 2027 | L83: simple ref
A84: BBAR before tax in BBAR period-end terms | F84: =F78 -> 67475.28409 | G84: 71340.10892 | H84: 73306.4679 | I84: 75376.60343 | J84: 0 | L84: simple ref
A85: ="PV at " & TEXT(B13, "dd-mmm-yy") & " BBAR before tax for each BBAR period" -> PV at 30-Sep-22 BBAR before tax for each BBAR period | F85: =F84*F31 -> 63613.9192 | G85: =G84*G31 -> 63398.43155 | H85: 61417.83048 | I85: 59538.26457 | J85: =J84*J31 -> 0 | L85: =Notes!A33 -> 27
A86: ="PV at " & TEXT(B13, "dd-mmm-yy") & " of total BBAR before tax" -> PV at 30-Sep-22 of total BBAR before tax | B86: =SUM(F85:J85) -> 247968.4458 | L86: =Notes!A34 -> 28
A87: Outputs
A88: BBAR year ending in calendar year: | B88: Value | F88: =F$7 -> 2023 | G88: 2024 | H88: =H$7 -> 2025 | I88: 2026 | J88: 2027 | L88: simple ref
A89: Present value of BBAR as at the start of the regulatory period | B89: =B86 -> 247968.4458 | L89: simple ref
A90: Opening investment value at start of regulatory period | B90: =B39 -> 386934.068 | L90: simple ref
A91: Closing investment value at end of regulatory period | B91: =B41 -> 390591.7461 | L91: simple ref
A92: Term credit spread differential allowance, full BBAR years | F92: =F35 -> 431.098781 | G92: 432.5955946 | H92: 431.7613842 | I92: 430.7672742 | J92: 430.4158798 | L92: simple ref
A93: BBAR before tax in revenue date terms | F93: =F79 -> 65882.1041 | G93: 69649.00803 | H93: 71575.60601 | I93: 73596.86292 | J93: 0 | L93: simple ref
A94: Opening investment value (full BBAR year values) | E94: =E38 -> 374314.038 | F94: 386934.068 | G94: 389369.7087 | H94: 389611.1822 | I94: 389763.4207 | J94: 390591.7461 | L94: simple ref
A95: Total capital charge

Sheet Rev
A1: Revenue growth index | D1: Values, not time series | F1: 1st revenue year | G1: 2nd revenue year | H1: 3rd revenue year | I1: 4th revenue year | L1: Spec ref
A2: Calculation of the normalised profile of the maximum allowable revenue before tax values.
A3: Inputs | I3: =GPB_name -> Powerco
A4: Pricing year ending in calendar year: | E4: ='GPB data'!E18 -> 2022 | F4: ='GPB data'!F18 -> 2023 | G4: ='GPB data'!G18 -> 2024 | H4: ='GPB data'!H18 -> 2025 | I4: ='GPB data'!I18 -> 2026 | L4: GPB data
A5: Constant price revenue growth | G5: ='GPB data'!G66 -> 0.01427319055 | H5: ='GPB data'!H66 -> 0.01361786665 | I5: ='GPB data'!I66 -> 0.01296971087 | L5: GPB data
A6: Industry-wide X factor | D6: ='GPB data'!B11 -> 0 | L6: GPB data
A7: Alternative X factor | D7: ='GPB data'!B44 -> -0.07485632177 | L7: GPB data
A9: Forecast changes in the CPI element of the price path, no lag | G9: ='GPB data'!G27 -> 0.03836140997 | H9: ='GPB data'!H27 -> 0.02248782285 | I9: ='GPB data'!I27 -> 0.02024771097
A10: Total revenue cap (TRC) or weighted average price cap (WAPC) | D10: ='GPB data'!B30 -> WAPC | L10: GPB data
A11: Calculations
A13: ="Index of price path with industry-wide X factor of "&TEXT(D6,"#0.0%") -> Index of price path with industry-wide X factor of 0.0%
A14: Pricing year ending in calendar year: | F14: =F$4 -> 2023 | G14: =G$4 -> 2024 | H14: =H$4 -> 2025 | I14: =I$4 -> 2026 | L14: simple ref
A15: X value applied, i.e. industry-wide X factor | D15: =D6 -> 0 | L15: simple ref
A16: Index of cumulative CPI minus X changes | F16: 1 | G16: =F16*(1+G$9)*(1-$D$15) -> 1.03836141 | H16: =G16*(1+H$9)*(1-$D$15) -> 1.061711897 | I16: 1.083209133 | L16: =Notes!A37 -> 100
A17: Index of constant price growth for weighted average price cap | F17: 1 | G17: =F17*(1+G$5) -> 1.014273191 | H17: =G17*(1+H$5) -> 1.028085428 | I17: =H17*(1+I$5) -> 1.041419398 | L17: =Notes!A38 -> 101
A18: Indexed maximum allowable revenue before tax | F18: 1 | G18: =IF($D$10="WAPC",G16*G17,IF($D$10="TRC_FQ",G16,#N/A)) -> 1.05318214 | H18: =IF($D$10="WAPC",H16*H17,IF($D$10="TRC_FQ",H16,#N/A)) -> 1.09153053 | I18: =IF($D$10="WAPC",I16*I17,IF($D$10="TRC_FQ",I16,#N/A)) -> 1.128075004 | L18: =Notes!A39 -> 102
A19: ="CPI minus X revenues with applicable X factor (" & IF(ISNUMBER(D7),"alternate X factor of " & TEXT(D7,"#0.0%"), "industry-wide X factor of " & TEXT(D6,"#0.0%"))&")" -> CPI minus X revenues with applicable X factor (alternate X factor of -7.5%)
A20: Pricing year ending in calendar year: | F20: =F$4 -> 2023 | G20: =G$4 -> 2024 | H20: =H$4 -> 2025 | I20: =I$4 -> 2026 | L20: simple ref
A21: X value applied, i.e. alternative X factor if applicable | D21: =IF(D7="blank",D6,D7) -> -0.07485632177
A22: Index of cumulative CPI minus X changes | F22: 1 | G22: =F22*(1+G$9)*(1-$D$21) -> 1.116089326 | H22: =G22*(1+H$9)*(1-$D$21) -> 1.226612862 | I22: 1.345127831 | L22: =Notes!A37 -> 100
A23: Index of constant price growth for weighted average price cap | F23: 1 | G23: =F23*(1+G$5) -> 1.014273191 | H23: =G23*(1+H$5) -> 1.028085428 | I23: =H23*(1+I$5) -> 1.041419398 | L23: =Notes!A38 -> 101
A24: Indexed maximum allowable revenue before tax | F24: 1 | G24: =IF($D$10="WAPC",G22*G23,IF($D$10="TRC_FQ",G22,#N/A)) -> 1.132019481 | H24: =IF($D$10="WAPC",H22*H23,IF($D$10="TRC_FQ",H22,#N/A)) -> 1.261062809 | I24: =IF($D$10="WAPC",I22*I23,IF($D$10="TRC_FQ",I22,#N/A)) -> 1.400842216 | L24: =Notes!A39 -> 102
A25: Outputs
A26: Pricing year ending in calendar year: | F26: =F$4 -> 2023 | G26: =G$4 -> 2024 | H26: =H$4 -> 2025 | I26: =I$4 -> 2026 | L26: simple ref
A27: Indexed maximum allowable revenue before tax—industry wide X factor | F27: =F18 -> 1 | G27: =G18 -> 1.05318214 | H27: =H18 -> 1.09153053 | I27: =I18 -> 1.128075004 | L27: simple ref
A28: Indexed maximum allowable revenue before tax—applicable X factor | F28: =F24 -> 1 | G28: =G24 -> 1.132019481 | H28: =H24 -> 1.261062809 | I28: =I24 -> 1.400842216 | L28: simple ref

Sheet MAR
A1: Maximum allowable revenue | C1: Values, not time series | F1: 1st Revenue year | G1: 2nd Revenue year | H1: 3rd Revenue year | I1: 4th Revenue year | K1: Spec ref
A2: Calculation of starting prices.
A3: Inputs | I3: =GPB_name -> Powerco | K3: Simple ref
A4: Pricing year ending in calendar year: | F4: ='GPB data'!F18 -> 2023 | G4: ='GPB data'!G18 -> 2024 | H4: ='GPB data'!H18 -> 2025 | I4: ='GPB data'!I18 -> 2026 | K4: GPB data
A5: Year in regulatory period | F5: 1 | G5: =F5+1 -> 2 | H5: =G5+1 -> 3 | I5: =H5+1 -> 4 | K5: GPB data
A6: Industry-wide X factor | C6: ='GPB data'!B11 -> 0 | K6: GPB data
A7: Alternative X factor | C7: ='GPB data'!B44 -> -0.07485632177 | K7: GPB data
A8: Vanilla WACC (67th percentile) | C8: =WACC -> 0.0607 | K8: GPB data
A9: TFrev | C9: =Timing!C27 -> 1.024182288 | K9: TIMING
A10: Constant price revenue growth in year ending 2022 | C10: ='GPB data'!E66 -> 0.01534142993 | K10: GPB data
A11: Constant price revenue growth in year ending 2023 | C11: ='GPB data'!F66 -> 0.01493318336 | K11: GPB data
A12: PV at 30 Sep 2022 of BBAR before tax over the regulatory period | C12: =BBAR!B89 -> 247968.4458 | K12: BBAR
A13: Indexed maximum allowable revenue before tax—industry wide X factor | F13: =Rev!F27 -> 1 | G13: =Rev!G27 -> 1.05318214 | H13: =Rev!H27 -> 1.09153053 | I13: =Rev!I27 -> 1.128075004 | K13: REV
A14: Indexed maximum allowable revenue before tax—applicable X factor | F14: =Rev!F28 -> 1 | G14: =Rev!G28 -> 1.132019481 | H14: =Rev!H28 -> 1.261062809 | I14: =Rev!I28 -> 1.400842216 | K14: REV
A15: Total revenue cap (TRC) or weighted avg price cap (WAPC) | C15: ='GPB data'!B30 -> WAPC | K15: GPB data
A16: Calculations
A17: ="CPI minus X revenues with industry-wide X factor of "&TEXT(C6,"#0.0%") -> CPI minus X revenues with industry-wide X factor of 0.0%
A18: Pricing year ending in calendar year: | F18: =F$4 -> 2023 | G18: =G$4 -> 2024 | H18: =H$4 -> 2025 | I18: =I$4 -> 2026 | K18: simple ref
A19: PV at 30 Sep 2022 of BBAR before tax over the regulatory period | C19: =C12 -> 247968.4458 | K19: simple ref
A20: ="Target PV at " & TEXT(Inputs!B15, "dd mmm yyyy") & " of maximum allowable revenue before tax" -> Target PV at 30 Sep 2022 of maximum allowable revenue before tax | C20: =C19 -> 247968.4458 | K20: =Notes!A42 -> 110
A21: Indexed maximum allowable revenue before tax | F21: =F13 -> 1 | G21: =G13 -> 1.05318214 | H21: =H13 -> 1.09153053 | I21: =I13 -> 1.128075004 | K21: simple ref
A22: Present value of indexed maximum allowable revenue for each year | F22: =F21/(1+$C$8)^F$5 -> 0.94277364 | G22: =G21/(1+$C$8)^G$5 -> 0.9360915999 | H22: =H21/(1+$C$8)^H$5 -> 0.9146568282 | I22: =I21/(1+$C$8)^I$5 -> 0.8911846565 | K22: =Notes!A43 -> 111
A23: Present value of indexed revenue | C23: =SUM(F22:I22) -> 3.684706725 | K23: =Notes!A44 -> 112
A24: Maximum allowable revenue before tax in first year of the regulatory period | C24: =C20/C23 -> 67296.65733 | K24: =Notes!A45 -> 113
A25: Maximum allowable revenue before tax in year-end terms | F25: =$C24*F21 -> 67296.65733 | G25: =$C24*G21 -> 70875.6376 | H25: =$C24*H21 -> 73456.35604 | I25: =$C24*I21 -> 75915.67696 | K25: =Notes!A46 -> 114
A26: Maximum allowable revenue before tax in revenue-date terms | F26: =F25/$C$9 -> 65707.69495 | G26: =G25/$C$9 -> 69202.1708 | H26: =H25/$C$9 -> 71721.9551 | I26: =I25/$C$9 -> 74123.20822 | K26: =Notes!A47 -> 115
A27: ="PV at " & TEXT(Inputs!B15, "dd mmm yyyy") & " of maximum allowable revenue before tax in year-end terms in each year" -> PV at 30 Sep 2022 of maximum allowable revenue before tax in year-end terms in each year | F27: =F25/(1+$C$8)^F5 -> 63445.51459 | G27: =G25/(1+$C$8)^G5 -> 62995.83562 | H27: =H25/(1+$C$8)^H5 -> 61553.34714 | I27: =I25/(1+$C$8)^I5 -> 59973.74844 | K27: =Notes!A48 -> 116
A28: ="PV at " &TEXT(Inputs!B15, "dd mmm yyyy") & " of maximum allowable revenue before tax" -> PV at 30 Sep 2022 of maximum allowable revenue before tax | C28: =SUM(F27:I27) -> 247968.4458 | K28: =Notes!A49 -> 117
A29: Error check for PV equivalence (should = 0) | C29: =C20-C28 -> 0 | K29: =Notes!A50 -> 118
A30: ΔD | C30: =IF(C15="WAPC",(1+$C$10)*(1+$C$11),#N/A) -> 1.03050371 | K30: =Notes!A51 -> 119
A31: ANR (industry-wide X-factor) pricing year ending Sep 2023, GDBs only | C31: =F26/C30 -> 63762.69618 | K31: =Notes!A52 -> 120
A33: Real MAR increases
A35: Nominal MAR - SPA | E35: ='GPB data'!B45 -> 51435.56862 | F35: =F26 -> 65707.69495 | G35: =G26 -> 69202.1708 | H35: 71721.9551 | I35: 74123.20822
A36: Nominal MAR increases % | F36: =F35/E35-1 -> 0.2774758152 | G36: =G35/F35-1 -> 0.05318214024 | H36: =H35/G35-1 -> 0.03641192567 | I36: =I35/H35-1 -> 0.0334800288
A37: CPI | F37: ='GPB data'!F27 -> 0.04925236518 | G37: ='GPB data'!G27 -> 0.03836140997 | H37: ='GPB data'!H27 -> 0.02248782285 | I37: ='GPB data'!I27 -> 0.02024771097
A38: CPRG | F38: ='GPB data'!F66 -> 0.01493318336 | G38: ='GPB data'!G66 -> 0.01427319055 | H38: ='GPB data'!H66 -> 0.01361786665 | I38: ='GPB data'!I66 -> 0.01296971087
A39: Real MAR increases SPA | F39: =F35/E35/(1+F37)/(1+F38)-1 -> 0.1995967433 | G39: =G35/F35/(1+G37)/(1+G38)-1 -> 0 | H39: 0 | I39: 0
A40: ="CPI minus X revenues with applicable X factor (" & IF(ISNUMBER(C7),"alternate X factor of " & TEXT(C7,"#0.0%"), "industry-wide X factor of " & TEXT(C6,"#0.0%"))&")" -> CPI minus X revenues with applicable X factor (alternate X factor of -7.5%)
A41: Pricing year ending in calendar year: | F41: =F$4 -> 2023 | G41: =G$4 -> 2024 | H41: =H$4 -> 2025 | I41: =I$4 -> 2026 | K41: simple ref
A42: =BBAR!A89 -> Present value of BBAR as at the start of the regulatory period | C42: =C12 -> 247968.4458 | K42: simple ref
A43: ="Target PV at " & TEXT('GPB data'!B14, "dd-mmm-yy") & " of Maximum Allowable Revenue before tax" -> Target PV at 30-Sep-22 of Maximum Allowable Revenue before tax | C43: =C42 -> 247968.4458 | K43: =Notes!A42 -> 110
A44: Indexed maximum allowable revenue before tax | F44: =F14 -> 1 | G44: =G14 -> 1.132019481 | H44: =H14 -> 1.261062809 | I44: =I14 -> 1.400842216 | K44: simple ref
A45: Present value of indexed maximum allowable revenue for each year | F45: =F44/(1+$C$8)^F$5 -> 0.94277364 | G45: =G44/(1+$C$8)^G$5 -> 1.006163974 | H45: =H44/(1+$C$8)^H$5 -> 1.056717771 | I45: =I44/(1+$C$8)^I$5 -> 1.106672061 | K45: =Notes!A43 -> 111
A46: Present value of indexed revenue | C46: =SUM(F45:I45) -> 4.112327446 | K46: =Notes!A44 -> 112
A47: Maximum allowable revenue before tax in first year of the regulatory period | C47: =C43/C46 -> 60298.80866 | K47: =Notes!A45 -> 113
A48: Maximum allowable revenue before tax in year-end terms | F48: =$C47*F44 -> 60298.80866 | G48: =$C47*G44 -> 68259.4261 | H48: =$C47*H44 -> 76040.585 | I48: =$C47*I44 -> 84469.11676 | K48: =Notes!A46 -> 114
A49: Maximum allowable revenue before tax in revenue-date terms | F49: =F48/$C$9 -> 58875.07467 | G49: =G48/$C$9 -> 66647.73149 | H49: =H48/$C$9 -> 74245.16702 | I49: =I48/$C$9 -> 82474.69009 | K49: =Notes!A47 -> 115
A50: ="PV at " & TEXT('GPB data'!B14, "dd-mmm-yy") & " of maximum allowable revenue before tax in year-end terms in each year" -> PV at 30-Sep-22 of maximum allowable revenue before tax in year-end terms in each year | F50: =F48/(1+$C$8)^F$5 -> 56848.12733 | G50: =G48/(1+$C$8)^G$5 -> 60670.48894 | H50: =H48/(1+$C$8)^H$5 -> 63718.82267 | I50: =I48/(1+$C$8)^I$5 -> 66731.00686 | K50: =Notes!A48 -> 116
A51: ="PV at " & TEXT('GPB data'!B14, "dd-mmm-yy") & " of maximum allowable revenue before tax" -> PV at 30-Sep-22 of maximum allowable revenue before tax | C51: =SUM(F50:I50) -> 247968.4458 | K51: =Notes!A49 -> 117
A52: Error check for PV equivalence (should = 0) | C52: =C43-C51 -> 0 | K52: =Notes!A50 -> 118
A53: ΔD | C53: =IF(C15="WAPC",(1+$C$10)*(1+$C$11),#N/A) -> 1.03050371 | K53: =Notes!A51 -> 119
A54: ANR (industry-wide X-factor) pricing year ending Sep 2023, GDBs only | C54: =F49/C53 -> 57132.32676 | K54: =Notes!A52 -> 120
A55: This data block uses the applicable 2022/23 X factor to calculate the maximum allowable revenues for the regulatory period. These allowed
A56: revenues are PV-equivalent to the corresponding revenues calculated with the industry-wide X factor in the previous data block.
A58: Real MAR increases
A60: Nominal MAR - SPA | E60: ='GPB data'!B45 -> 51435.56862 | F60: =F49 -> 58875.07467 | G60: =G49 -> 66647.73149 | H60: 74245.16702 | I60: 82474.69009
A61: Nominal MAR increases % | F61: =F60/E60-1 -> 0.1446373832 | G61: =G60/F60-1 -> 0.1320194814 | H61: 0.1139939103 | I61: 0.1108425424
A62: CPI | F62: ='GPB data'!F27 -> 0.04925236518 | G62: ='GPB data'!G27 -> 0.03836140997 | H62: ='GPB data'!H27 -> 0.02248782285 | I62: ='GPB data'!I27 -> 0.02024771097
A63: CPRG | F63: ='GPB data'!F66 -> 0.01493318336 | G63: ='GPB data'!G66 -> 0.01427319055 | H63: ='GPB data'!H66 -> 0.01361786665 | I63: ='GPB data'!I66 -> 0.01296971087
A64: Real MAR increases SPA | F64: =F60/E60/(1+F62)/(1+F63)-1 -> 0.07485657325 | G64: =G60/F60/(1+G62)/(1+G63)-1 -> 0.07485632177 | H64: 0.07485632177 | I64: 0.07485632177
A66: Outputs
A67: Pricing year ending in calendar year:
A68: Maximum allowable revenue before tax in revenue-date terms for industry wide X factor | F68: =F$4 -> 2023 | G68: =G$4 -> 2024 | H68: =H$4 -> 2025 | I68: =I$4 -> 2026 | K68: simple ref
A69: Maximum allowable revenue before tax in revenue-date terms for applicable X factor | F69: =F26 -> 65707.69495 | G69: =G26 -> 69202.1708 | H69: =H26 -> 71721.9551 | I69: =I26 -> 74123.20822 | K69: simple ref
A70: Starting price for industry-wide X factor | F70: =F49 -> 58875.07467 | G70: =G49 -> 66647.73149 | H70: =H49 -> 74245.16702 | I70: =I49 -> 82474.69009 | K70: simple ref
A71: Starting price for applicable X factor | F71: =F26 -> 65707.69495 | K71: simple ref
A72: ="PV at " & TEXT('GPB data'!B14, "dd-mmm-yy") & " of MAR before tax over the regulatory period (applicable X )" -> PV at 30-Sep-22 of MAR before tax over the regulatory period (applicable X ) | F72: =F49 -> 58875.07467 | K72: simple ref
A73: ΔD | F73: =C43 -> 247968.4458 | K73: simple ref
A74: ANR (industry-wide X-factor) pricing year ending Sep 2023, GDBs only | F74: =IF(Outputs!B4>4,"",C53) -> 1.03050371 | K74: simple ref
F75: =IF(Outputs!B4>4,"",C54) -> 57132.32676 | K75: simple ref

Sheet Outputs
A1: DPP reset output table
A2: This worksheet uses Excel's data table facility to display the calculated results for all suppliers.
A3: Chosen supplier | B3: =GPB_name -> Powerco
A4: Supplier number | B4: =Inputs!C4 -> 2
A5: tax timing | B5: tax date mid-period
B6: Active GDB outputs | C6: =Inputs!B22 -> GasNet | D6: =Inputs!C22 -> Powerco | E6: =Inputs!D22 -> Vector | F6: =Inputs!E22 -> First Gas distribution | G6: =Inputs!F22 -> First Gas transmission
A7: Supplier number | B7: =B4 -> 2 | C7: =Inputs!B23 -> 1 | D7: =Inputs!C23 -> 2 | E7: =Inputs!D23 -> 3 | F7: =Inputs!E23 -> 4 | G7: =Inputs!F23 -> 5
A8: Outputs | C8: 0 | D8: 0 | E8: 0 | F8: 0 | G8: 0
A9: PV of BBAR at 30 September 2022 | B9: =BBAR!B89 -> 247968.4458 | C9: 19288.02251 | D9: 247968.4458 | E9: 230462.7807 | F9: 119361.9568 | G9: 626669.1958
A10: Starting price for industry-wide X factor | B10: =MAR!F71 -> 65707.69495 | C10: 5212.296196 | D10: 65707.69495 | E10: 61377.28504 | F10: 32620.65293 | G10: 171803.8482
A11: Starting price for applicable X factor | B11: =MAR!F72 -> 58875.07467 | C11: 4838.789014 | D11: 58875.07467 | E11: 56856.01745 | F11: 28249.96793 | G11: 148761.8512
A12: PV at 30 September 2022 of MAR (applicable X) | B12: =MAR!F73 -> 247968.4458 | C12: 19288.02251 | D12: 247968.4458 | E12: 230462.7807 | F12: 119361.9568 | G12: 626669.1958
A13: MAR (industry-wide X factor), pricing period ending 2023 | B13: =MAR!F69 -> 65707.69495 | C13: 5212.296196 | D13: 65707.69495 | E13: 61377.28504 | F13: 32620.65293 | G13: 171803.8482
A14: MAR (industry-wide X factor), pricing period ending 2024 | B14: =MAR!G69 -> 69202.1708 | C14: 5415.055515 | D14: 69202.1708 | E14: 64401.19054 | F14: 33629.61464 | G14: 175368.3593
A15: MAR (industry-wide X factor), pricing period ending 2025 | B15: =MAR!H69 -> 71721.9551 | C15: 5538.521162 | D15: 71721.9551 | E15: 66529.18311 | F15: 34130.93785 | G15: 178875.7264
A16: MAR (industry-wide X factor), pricing period ending 2026 | B16: =MAR!I69 -> 74123.20822 | C16: 5651.259102 | D16: 74123.20822 | E16: 68564.76819 | F16: 34555.14693 | G16: 182453.241
A17: MAR (applicable X factor), pricing period ending 2023 | B17: =MAR!F70 -> 58875.07467 | C17: 4838.789014 | D17: 58875.07467 | E17: 56856.01745 | F17: 28249.96793 | G17: 148761.8512
A18: MAR (applicable X factor), pricing period ending 2024 | B18: =MAR!G70 -> 66647.73149 | C18: 5284.127747 | D18: 66647.73149 | E18: 62771.43975 | F18: 32036.11807 | G18: 167033.1267
A19: MAR (applicable X factor), pricing period ending 2025 | B19: =MAR!H70 -> 74245.16702 | C19: 5681.029058 | D19: 74245.16702 | E19: 68230.69846 | F19: 35765.0554 | G19: 187411.1682
A20: MAR (applicable X factor), pricing period ending 2026 | B20: =MAR!I70 -> 82474.69009 | C20: 6093.140702 | D20: 82474.69009 | E20: 73989.15549 | F20: 39830.53218 | G20: 210275.3307
A21: BBAR before tax, for the BBAR period ending 2023 | B21: =BBAR!F93 -> 65882.1041 | C21: 3776.986434 | D21: 65882.1041 | E21: 45490.07026 | F21: 30847.48545 | G21: 166684.3638
A22: BBAR before tax, for the BBAR period ending 2024 | B22: =BBAR!G93 -> 69649.00803 | C22: 5363.256666 | D22: 69649.00803 | E22: 64787.59645 | F22: 33349.69237 | G22: 176165.8429
A23: BBAR before tax, for the BBAR period ending 2025 | B23: =BBAR!H93 -> 71575.60601 | C23: 5545.134442 | D23: 71575.60601 | E23: 66067.98336 | F23: 34820.13363 | G23: 180670.6239
A24: BBAR before tax, for the BBAR period ending 2026 | B24: =BBAR!I93 -> 73596.86292 | C24: 5684.219097 | D24: 73596.86292 | E24: 67141.72739 | F24: 36269.39439 | G24: 185835.5969
A25: ΔD | B25: =MAR!F74 -> 1.03050371 | C25: 1.001855153 | D25: 1.03050371 | E25: 1.029706844 | F25: 0.9865315951
A26: ANR 2023 (applicable X-factor) | B26: =MAR!F75 -> 57132.32676 | C26: 4829.828944 | D26: 57132.32676 | E26: 55215.73231 | F26: 28635.64439
A27: =MAR!A60 -> Nominal MAR - SPA | C27: 0 | D27: 0 | E27: 0 | F27: 0 | G27: 0
A28: DPP2 2022 Nominal $ | B28: =TRANSPOSE(MAR!$E$60:$I$60) -> 51435.56862 | C28: 4383.998268 | D28: 51435.56862 | E28: 50702.2772 | F28: 24646.15131 | G28: 131623.3864
A29: DPP3 2023 Nominal $ | B29: 58875.07467 | C29: 4838.789014 | D29: 58875.07467 | E29: 56856.01745 | F29: 28249.96793 | G29: 148761.8512
A30: DPP3 2024 Nominal $ | B30: 66647.73149 | C30: 5284.127747 | D30: 66647.73149 | E30: 62771.43975 | F30: 32036.11807 | G30: 167033.1267
A31: DPP3 2025 Nominal $ | B31: 74245.16702 | C31: 5681.029058 | D31: 74245.16702 | E31: 68230.69846 | F31: 35765.0554 | G31: 187411.1682
A32: DPP3 2026 Nominal $ | B32: 82474.69009 | C32: 6093.140702 | D32: 82474.69009 | E32: 73989.15549 | F32: 39830.53218 | G32: 210275.3307
A33: Nominal MAR - SPA | C33: 0 | D33: 0 | E33: 0 | F33: 0 | G33: 0
A34: DPP3 2023 Nominal % | B34: =TRANSPOSE(MAR!$F$61:$I$61) -> 0.1446373832 | C34: 0.1037388061 | D34: 0.1446373832 | E34: 0.121370096 | F34: 0.1462222877 | G34: 0.1302083565
A35: DPP3 2024 Nominal % | B35: 0.1320194814 | C35: 0.09203516242 | D35: 0.1320194814 | E35: 0.10404215 | F35: 0.1340231658 | G35: 0.1228223186
A36: DPP3 2025 Nominal % | B36: 0.1139939103 | C36: 0.07511198243 | D36: 0.1139939103 | E36: 0.08697042374 | F36: 0.1163979143 | G36: 0.122
A37: DPP3 2026 Nominal % | B37: 0.1108425424 | C37: 0.0725417244 | D37: 0.1108425424 | E37: 0.08439686476 | F37: 0.1136717597 | G37: 0.122
A38: Real MAR % | B38: =MAR!F64 -> 0.07485657325 | C38: 0.05114543129 | D38: 0.07485657325 | E38: 0.05220278071 | F38: 0.09999986707 | G38: 0.1000000422
A39: Adjustment Factor | B39: =RAB!B12 -> 0.8712376753 | C39: 0.6379706969 | D39: 0.8712376753 | E39: 0.5999520724 | F39: 0.846556341 | G39: 0.750509227
A40: Rate of Change | B40: =MAR!C7 -> -0.07485632177 | C40: -0.05114540505 | D40: -0.07485632177 | E40: -0.0522027492 | F40: -0.1 | G40: -0.1
A41: Implied real price increase with one-off SPA | B41: =MAR!F39 -> 0.1995967433 | C41: 0.1322835769 | D41: 0.1995967433 | E41: 0.1358753724 | F41: 0.2701860039 | G41: 0.2703810735
B43: Real MAR YoY% | C43: Desired Value | D43: Value of Adjustment Factor
A44: Goal-sought Adjustment Factor for Accelerated Depreciation FGD | B44: =AVERAGE(MAR!$F$64:$I$64) -> 0.07485638464 | C44: 0.1 | D44: 0.846556341
A45: Goal-sought Adjustment Factor for Accelerated Depreciation FGT | B45: =AVERAGE(MAR!$F$64:$I$64) -> 0.07485638464 | C45: 0.1 | D45: 0.750509227

Sheet Outputs to Chartbook
A1: Outputs to chartbook
A4: Reasons Paper Charts
A5: Chapter 4 tables
B6: Table 4.1 Proposed MAR in each year of the regulatory period ($m, nominal)
B7: Year | C7: 2021/2022 forecast MAR | D7: 2022/2023 | E7: 2023/2024 | F7: 2024/2025 | G7: 2025/2026
B8: GasNet | C8: =(Outputs!C28)/1000 -> 4.383998268 | D8: =(Outputs!$C$17)/1000 -> 4.838789014 | E8: =(Outputs!$C$18)/1000 -> 5.284127747 | F8: =(Outputs!$C$19)/1000 -> 5.681029058 | G8: =(Outputs!$C$20)/1000 -> 6.093140702
B9: Powerco | C9: =(Outputs!D28)/1000 -> 51.43556862 | D9: =(Outputs!$D$17)/1000 -> 58.87507467 | E9: =(Outputs!$D$18)/1000 -> 66.64773149 | F9: =(Outputs!$D$19)/1000 -> 74.24516702 | G9: =(Outputs!$D$20)/1000 -> 82.47469009
B10: Vector | C10: =(Outputs!E28)/1000 -> 50.7022772 | D10: =(Outputs!$E$17)/1000 -> 56.85601745 | E10: =(Outputs!$E$18)/1000 -> 62.77143975 | F10: =(Outputs!$E$19)/1000 -> 68.23069846 | G10: =(Outputs!$E$20)/1000 -> 73.98915549
B11: First Gas distribution | C11: =(Outputs!F28)/1000 -> 24.64615131 | D11: =(Outputs!$F$17)/1000 -> 28.24996793 | E11: =(Outputs!$F$18)/1000 -> 32.03611807 | F11: =(Outputs!$F$19)/1000 -> 35.7650554 | G11: =(Outputs!$F$20)/1000 -> 39.83053218
B12: First Gas transmission | C12: =(Outputs!G28)/1000 -> 131.6233864 | D12: =(Outputs!$G$17)/1000 -> 148.7618512 | E12: =(Outputs!$G$18)/1000 -> 167.0331267 | F12: =(Outputs!$G$19)/1000 -> 187.4111682 | G12: =(Outputs!$G$20)/1000 -> 210.2753307
B14: Table 4.2 Proposed starting prices (excluding pass-through and recoverable costs) and rate of change
B15: Supplier | C15: Starting prices($m) | D15: Increase from 2021/2022 MAR | E15: Rate of change
B16: GasNet | C16: =(Outputs!$C$17)/1000 -> 4.838789014 | D16: =C16/C8-1 -> 0.1037388061 | E16: =TRANSPOSE(Outputs!$C$40:$G$40) -> -0.05114540505
B17: Powerco | C17: =(Outputs!$D$17)/1000 -> 58.87507467 | D17: =C17/C9-1 -> 0.1446373832 | E17: -0.07485632177
B18: Vector | C18: =(Outputs!$E$17)/1000 -> 56.85601745 | D18: 0.121370096 | E18: -0.0522027492
B19: First Gas distribution | C19: =(Outputs!$F$17)/1000 -> 28.24996793 | D19: 0.1462222877 | E19: -0.1
B20: First Gas transmission | C20: =(Outputs!$G$17)/1000 -> 148.7618512 | D20: 0.1302083565 | E20: -0.1
B22: Table 4.3 Adjustment Factors to be applied to asset lives for DPP3
B23: Supplier | C23: Adjustment Factor
B24: GasNet | C24: =TRANSPOSE(Outputs!$C$39:$G$39) -> 0.6379706969
B25: Powerco | C25: 0.8712376753
B26: Vector | C26: 0.5999520724
B27: First Gas distribution | C27: 0.846556341
B28: First Gas transmission | C28: 0.750509227
B30: Table 4.4 Implied real price increases due to one-off starting price adjustment
B31: Supplier | C31: Implied starting price($m) | D31: Implied real price increase for year 1 of DPP3
B32: GasNet | C32: =(Outputs!$C$13)/1000 -> 5.212296196 | D32: =TRANSPOSE(Outputs!$C$41:$G$41) -> 0.1322835769
B33: Powerco | C33: =(Outputs!$D$13)/1000 -> 65.70769495 | D33: 0.1995967433
B34: Vector | C34: =(Outputs!$E$13)/1000 -> 61.37728504 | D34: 0.1358753724
B35: First Gas distribution | C35: =(Outputs!$F$13)/1000 -> 32.62065293 | D35: 0.2701860039
B36: First Gas transmission | C36: =(Outputs!$G$13)/1000 -> 171.8038482 | D36: 0.2703810735
B38: Table 4.5 Alternative rate of change for each GPB
B39: Supplier | C39: Proposed rate of change (X-factor)
B40: GasNet | C40: =TRANSPOSE(Outputs!$C$40:$G$40) -> -0.05114540505
B41: Powerco | C41: -0.07485632177
B42: Vector | C42: -0.0522027492
B43: First Gas distribution | C43: -0.1
B44: First Gas transmission | C44: -0.1
A47: Transmission Determination Tables & Values
B49: Schedule 1: Starting prices
C50: Actual net allowable revenue $m | D50: Decimal places
B51: Starting price | C51: =Outputs!G17/1000 -> 148.7618512 | D51: 3
B53: Schedule 2: Rate of change
C54: Rate of change / Alternative X factor
B55: Rate of change | C55: -0.1
B58: Schedule 4: Forecast Net Allowable Revenue
C59: Forecast net allowable revenue $k | D59: Decimal places
B60: 2023-09-30 | C60: =Outputs!G17 -> 148761.8512 | D60: 3
B61: 2024-09-30 | C61: =Outputs!G18 -> 167033.1267 | D61: 3
B62: 2025-09-30 | C62: =Outputs!G19 -> 187411.1682 | D62: 3
B63: 2026-09-30 | C63: =Outputs!G20 -> 210275.3307 | D63: 3
B65: Schedule 6: Calculation of Wash-up Amount for the first Assessment Period
C66: Value | D66: Decimal places
B67: Discount rate % | C67: 0.0585 | D67: 2 | H67: Used 5.85%, this being the discount rate in the 2017 determination Schedule 8.
B69: Schedule 8: Calculation of Opening Wash-up Account Balance
C70: Value | D70: Decimal places | H70: This is the 67th percentile estimate of post tax WACC, as
B71: Discount rate % | C71: 0.056 | D71: 2 | H71: required by GTB determination Schedule 9.
A73: Distribution Determination Tables & Values
B75: Schedule 1: Starting prices
B76: GDB | C76: Maximum allowable revenue $m | D76: Decimal places
B77: GasNet Limited | C77: =D8 -> 4.838789014 | D77: 3
B78: Powerco Limited | C78: =D9 -> 58.87507467 | D78: 3
B79: Vector Limited | C79: 56.85601745 | D79: 3
B80: First Gas Limited | C80: 28.24996793 | D80: 3
B82: Schedule 2: rate of change
C83: Rate of change / Alternative X factor
B84: GasNet Limited | C84: =Outputs!C40 -> -0.05114540505
B85: Powerco Limited | C85: =Outputs!D40 -> -0.07485632177
B86: Vector Limited | C86: =Outputs!E40 -> -0.0522027492
B87: First Gas Distribution Ltd | C87: =Outputs!F40 -> -0.1
B90: Schedule 3: Allowable notional revenue for the First Assessment Period
B91: GDB | C91: ΔD | D91: Decimal places
B92: GasNet Limited | C92: =TRANSPOSE(Outputs!C25:F25) -> 1.001855153 | D92: 4
B93: Powerco Limited | C93: 1.03050371 | D93: 4
B94: Vector Limited | C94: 1.029706844 | D94: 4
B95: First Gas Limited | C95: 0.9865315951 | D95: 4
B97: Schedule 5: Calculation of Wash-up Amount for the first Assessment Period
C98: Value | D98: Decimal places
B99: Discount rate % | C99: =Inputs!B17 -> 0.0401 | D99: 2 | H99: Cost of debt

Sheet Notes
A1: Model notes
A3: Ref # | B3: Description | C3: Calculation method | D3: Input methodology reference, rationale, reference or other justification for the calculation method
A5: BBAR sheet
A6: 1 | B6: Proportion of BBAR year in the regulatory period | C6: Number of BBAR months in the regulatory period / 12 | D6: Standard calculation for a proportion.
A7: =A6+1 -> 2 | B7: Cumulative number of days from start of regulatory period to end of BBAR period | C7: Zero in the gap year, otherwise equals the previous year's value + Number of BBAR days in the BBAR period | D7: Standard calculation for a cumulative value
A8: =A7+1 -> 3 | B8: PV factor from end of each BBAR period | C8: (1+WACC)^(-1*Cumulative number of days from start of regulatory period to end of BBAR period/365) | D8: Standard present value formula for the present value factor for a period of "n" years.
A9: 4 | B9: Asset base scaling factor | C9: Aggregate opening RAB value in each BBAR period / Aggregate opening RAB value in the base year | D9: IM paragraph 4.4.9(2) sets the TCSD allowance at a × b ÷ c. The asset base scaling factor is the b ÷ c in this formula.
A10: 5 | B10: Term credit spread differential allowance | C10: Term credit spread differential allowance * Asset base scaling factor | D10: TCSD allowance is calculated according to IM 4.4.9(2) by this formula. See definition of the asset base scaling factor above.
A11: 6 | B11: Opening investment value (full BBAR year values) | C11: Opening RAB + if the tax allowance is on a deferred tax basis, add the deferred tax balance, otherwise do not add anything to the RAB. | D11: Note that while this is according to the IMs, it is in part used for some calculations not covered by the IMs.
A12: 7 | B12: Opening investment value at the start of the regulatory period | C12: Opening value at the start of the regulatory period calculated by linear interpolation of the values at the opening and closing of the first BBAR year.
A13: =A11+1 -> 7 | B13: =BBAR!A40 -> Closing investment value, end of 5th BBAR year | C13: Closing RAB plus, if a deferred tax approach is being applied, the closing deferred tax
A14: =A12+1 -> 8 | B14: Closing investment value at the end of the regulatory period | C14: Closing value at the end of the regulatory period calculated by linear interpolation of the values at the opening and closing of the last BBAR year.
A15: 9 | B15: Opening investment value at the start of each BBAR period | C15: ="Opening value at the start of each full 12 month BBAR year, except for the first BBAR period, for which the opening value is the interpolated value as described at Item " & A12 & " above" -> Opening value at the start of each full 12 month BBAR year, except for the first BBAR period, for which the opening value is the interpolated value as described at Item 7 above | D15: Simple reference, except that the first year formula is different
A16: 10 | B16: Pro-rata of an annual value into the value for a part-year by multiplying by the proportion of the length of the part year to a full year | C16: Multiply the annual value by the proportion of BBAR year in the regulatory period
A17: 11 | B17: Change in deferred tax | C17: Difference between the closing and opening deferred tax for the full BBAR year | D17: Sign convention adopted is positive value indicates an increase, and positive deferred tax balance is an asset for the supplier. This is implicit in the tax input methodology.
A18: 12 | B18: WACC adjusted for full and part years | C18: (1+WACC)^(-1*Number of days in the BBAR period/365)-1
A19: 13 | B19: Return on capital | C19: Regulatory investment value * WACC plus value of additional assets * (mid-year timing factor -1) plus TCSD less revaluations | D19: See paragraph 34 of Attachment A of the model specification.
A20: 14 | B20: BBAR before tax in revenue date terms, calculation not referencing tax, deferred tax approach | C20: BBAR formula per Attachment A, Equation 14 of the model specification | D20: Attachment A to the model specification contains an algebraic derivation of a formula that calculates the BBAR from a number of variables. See Equation 14 for the deferred tax case, and Attachment B Equation 26 for the tax payable case. The variables do not include the tax allowance or the BBAR itself, and so breaks a circularity that could otherwise exist in calculating both the tax allowance and BBAR.
A21: 15 | B21: Regulatory tax allowance before considering possibility of tax losses | C21: Regulatory net taxable income * corporate tax rate | D21: See Attachment A, Equation 5. Developed as a formula from IM provisions.
A22: 16 | B22: Regulatory tax allowance | C22: Regulatory tax allowance multiplied by the tax rate, except that if regulatory taxable income is negative (which is not expected to occur), then the #N/A error value shall be returned, which will poison all dependent formulas to all levels with #N/A to alert the workbook user to the tax loss issue. | D22: This approach allows some simplification of the financial model. In effect we assume tax losses arise for no supplier in any BBAR period. In the event of tax losses occurring they will be flagged by the "poisoning" of the results. Note that the derivation of the BBAR formula in the attachments to the model specification relies on no tax losses arising.
A23: 17 | B23: BBAR before tax in period-end terms, direct simple calculation, deferred tax approach | C23: BBAR formula per Attachment A, Equation 10 of the model specification | D23: See Attachment A. Developed as a formula from the NPV=0 equation.
A24: 18 | B24: BBAR before tax in revenue date terms | C24: BBAR in year end terms divided by the revenue timing factor to determine BBAR in revenue date terms | D24: Formula, as discussed in the model specification, for adjusting from a year-end value to a cash flow date value
A25: 19 | B25: Difference between the two BBAR calculations | C25: ="Difference between the BBAR calculated using the formula that does not reference tax and the BBAR formula that does reference tax." -> Difference between the BBAR calculated using the formula that does not reference tax and the BBAR formula that does reference tax. | D25: The difference should be zero. This a check value to flag potential errors in the calculation of BBAR.
A26: 20 | B26: Depreciation temporary differences, tax payable approach | D26: IM reference 4.3.3(1)
A27: 21 | B27: BBAR before tax in revenue date terms, calculation not referencing tax, tax payable approach | C27: BBAR formula per Attachment B of the model specification | D27: Attachment B to the model specification contains an algebraic derivation of a formula that calculates the BBAR from a number of variables. See Equation 26. These variables do not include the tax allowance or the BBAR itself, and so breaks a circularity that could otherwise exist in calculating both the tax allowance and BBAR.
A28: 22 | B28: BBAR before tax in period-end terms, direct simple calculation, tax payable approach | C28: BBAR formula per Attachment B, Equation 24 of the model specification | D28: See Attachment B. Developed as a formula from the NPV=0 equation.
A29: 23 | B29: Regulatory tax allowance before considering possibility of tax losses | C29: Regulatory tax allowance before considering possibility of tax losses | D29: See Attachment B, Equation 19. Developed as a formula from IM provisions.
A30: 24 | B30: Formula for selecting between outputs that are dependent upon choice of tax approach | C30: Formula used for four tax parameters that depend upon whether a deferred tax or a tax payable approach is used.
A31: 25 | B31: Tax allowance in period-end terms | C31: Formula used for tax allowance, according to whether a deferred tax or a tax payable approach is used. Multiplied by the tax timing factor for the BBAR period to produce the BBAR in BBAR period-end terms
A32: 26 | B32: Tax payable amount. selecting between outputs that are dependent upon choice of tax approach and provides formula for one of them. Needs tidying. | C32: Formula for tax payable, that depends upon whether a deferred tax or a tax payable approach is used. If deferred tax, then tax payable is calculated as the tax allowance plus the increase in deferred tax | D32: If the tax payable approach is used, then the tax payable cash flow is the tax allowance. If the deferred tax approach is used then (per Equation 7 of Attachment A of the model specification), tax payable is the tax allowance plus the increase in deferred tax.
A33: 27 | B33: PV at 30-Sep-22 of each full year's BBAR before tax | C33: BBAR before tax in year-end terms x PV factor from end of each BBAR period to the start of the regulatory period | D33: Present values the BBAR period-end value to the start of the regulatory period
A34: 28 | B34: PV at 30-Sep-22 of BBAR before tax | C34: Simple sum of the series of present values for each BBAR
A36: REV sheet
A37: 100 | B37: Index of cumulative CPI-X changes | C37: equals 1 for first year of reg period, thereafter equals previous year's value x (1+∆CPI)(1-X)
A38: =A37+1 -> 101 | B38: Index of constant price growth | C38: equals 1 for first year of reg period, thereafter equals previous year's value x (1+CPRG)
A39: =A38+1 -> 102 | B39: Indexed maximum allowable revenue before tax | C39: If a WAPC applies, then this index is the index of cumulative CPI-X changes multiplied by the index of constant price revenue growth. If a revenue cap applies, then this index is equal to the index of cumulative CPI-X changes.
A41: MAR sheet
A42: 110 | B42: PV as at 30 Sep 2022 of maximum allowable revenue before tax | C42: The present value of BBARs plus any additional allowance
A43: =A42+1 -> 111 | B43: Present value, as at 30-9-22, of the indexed MAR of each assessment year | C43: Each year's index of MAR, expressed as a year-end value divided by the (1+WACC) to the power of the number of years
A44: =A43+1 -> 112 | B44: Total present value, as at 30-9-22, of all the MAR indices of the 5 pricing years | C44: Simple sum of each of the 5 individual year present values
A45: 113 | B45: Formula for calculating the MAR for the first year of the regulatory period | C45: Equal to the total present value of BBAR, plus any 'additional allowance', all divided by the present value of the indexed revenue
A46: 114 | B46: Maximum allowable revenue before tax in year-end terms | C46: Indexed MAR scaled up such that the first year MAR equals its calculated value
A47: 115 | B47: Maximum allowable revenue before tax in revenue-date terms | C47: Maximum allowable revenue before tax in year-end terms divided by the revenue timing factor
A48: 116 | B48: For each assessment year, the PV as at 30 Sep 2022 of maximum allowable revenue before tax in year-end terms | C48: Each year's MAR, expressed as a year-end value divided by the (1+ the discount rate) to the power of the number of years
A49: 117 | B49: PV at 30 Sep 2022 of maximum allowable revenue before tax | C49: Simple sum of each of the 5 individual year present values
A50: 118 | B50: Error check for PV equivalence (should = 0) | C50: The present value of BBARs plus any additional allowance compared with the present value of MARs, all as at 30-9-22
A51: 119 | B51: ΔD | C51: 1 plus CPRG for the first assessment year multiplied by the same parameter for the prior year. Not applicable if pure revenue cap applies, in which case #N/A is returned. | D51: ∆D is effectively the conversion factor between MAR and allowable notional revenue. Takes into account the change in quantities during the lag period in the WAPC.
A52: 120 | B52: ANR 2023 | C52: MAR for the assessment year ending 2023 divided by ∆D
A56: Ref # | B56: Name used in input methodologies | C56: Name used within the financial model | D56: Comments
B57: Forecast aggregate value of disposed assets | C57: Value of disposed assets
B58: Aggregate closing RAB value for existing assets | C58: Closing RAB value for existing assets
